Workbook

Sheet Литс 2
A1: № п/п | B1: Материалы | D1: Единица измерения | F1: Остаток на момент заполнения | G1: Дата заполнения | H1: Дебет | J1: Кредит | L1: Остаток на
B2: наименование | C2: код | D2: наим. | E2: код | L2: кол-во | M2: текущая дата
H3: кол-во (с учетом остатка) | I3: номер и дата накладной | J3: кол-во | K3: номер и дата документа
A4: 1 | B4: 2 | C4: 3 | D4: 4 | E4: 5 | F4: 6 | G4: 7 | H4: 8 | I4: 9 | J4: 10 | K4: 11 | L4: 12 | M4: 13 | N4: 14 | O4: 15
A5: =(C5<>"")*COUNTA($C$5:C5) -> 0 | F5: =H6 -> 0 | G5: =IF(Таблица13[[#This Row],[2]]="","",IF(G5="",IF(Таблица13[[#This Row],[2]]="","",NOW()),G5)) ->  | N5: =IF((C5=""),"х","") -> х | O5: =IF(C5=0,IF(L5<=0,"х",0),0) -> х | Q5: =IF(OR(C5=0,L5<=0),0,2) -> 0
A6: =(C6<>"")*COUNTA($C$5:C6) -> 0 | N6: =IF((C6=""),"х","") -> х | O6: =IF(C6=0,IF(L6<=0,"х",0),0) -> х
A7: =(C7<>"")*COUNTA($C$5:C7) -> 0 | N7: х | O7: х
A8: =(C8<>"")*COUNTA($C$5:C8) -> 0 | N8: х | O8: х
A9: =(C9<>"")*COUNTA($C$5:C9) -> 0 | B9: ИТОГО: | H9: =IF(OR(B5=B5),SUM(H6:H8)) -> 0 | J9: =IF(OR(B5=B5),SUM(J6:J8)) -> 0 | L9: =IF(OR(B5=B5),Таблица13[[#This Row],[8]]-SUM(J6:J8)) -> 0 | M9: =NOW() -> 2023-04-05T00:16:04.360 | N9: х | O9: х
A10: =(C10<>"")*COUNTA($C$5:C10) -> 1 | B10: Авт. выкл. | C10: 123 | D10: шт. | E10: 55 | F10: =H11 -> 1 | G10: =IF(Таблица13[[#This Row],[2]]="","",IF(G10="",IF(Таблица13[[#This Row],[2]]="","",NOW()),G10)) -> 2022-09-13T15:28:08.150 | O10: 0 | Q10: при значении=0 в ячейке L14 в данной ячейке нужно получить "х"
A11: =(C11<>"")*COUNTA($C$5:C11) -> 0 | H11: 1 | N11: х | O11: х
A12: =(C12<>"")*COUNTA($C$5:C12) -> 0 | J12: 1 | L12: =IF(OR(B10=B10),F10-SUM(Таблица13[[#This Row],[10]])) -> 0 | N12: х | O12: х
A13: =(C13<>"")*COUNTA($C$5:C13) -> 0 | N13: х | O13: х
A14: =(C14<>"")*COUNTA($C$5:C14) -> 0 | B14: ИТОГО: | H14: =IF(OR(B10=B10),SUM(H11:H13)) -> 1 | J14: =IF(OR(B10=B10),SUM(J11:J13)) -> 1 | L14: =IF(OR(B10=B10),Таблица13[[#This Row],[8]]-SUM(J11:J13)) -> 0 | M14: =NOW() -> 2023-04-05T00:16:04.350 | N14: х | O14: х
A15: =(C15<>"")*COUNTA($C$5:C15) -> 2 | B15: Валик | C15: 124 | D15: шт. | E15: 55 | F15: =H16 -> 1 | G15: =IF(Таблица13[[#This Row],[2]]="","",IF(G15="",IF(Таблица13[[#This Row],[2]]="","",NOW()),G15)) -> 2022-09-13T15:28:08.150 | O15: 0
A16: =(C16<>"")*COUNTA($C$5:C16) -> 0 | H16: 1 | N16: х | O16: х
A17: =(C17<>"")*COUNTA($C$5:C17) -> 0 | N17: х | O17: х
A18: =(C18<>"")*COUNTA($C$5:C18) -> 0 | N18: х | O18: х
A19: =(C19<>"")*COUNTA($C$5:C19) -> 0 | B19: ИТОГО: | H19: =IF(OR(B15=B15),SUM(H16:H18)) -> 1 | J19: =IF(OR(B15=B15),SUM(J16:J18)) -> 0 | L19: =IF(OR(B15=B15),Таблица13[[#This Row],[8]]-SUM(J16:J18)) -> 1 | M19: =NOW() -> 2023-04-05T00:16:04.360 | N19: х | O19: 0
A20: =(C20<>"")*COUNTA($C$5:C20) -> 3 | B20: Валик | C20: 125 | D20: шт. | E20: 56 | F20: =H21 -> 1 | G20: =IF(Таблица13[[#This Row],[2]]="","",IF(G20="",IF(Таблица13[[#This Row],[2]]="","",NOW()),G20)) -> 2022-09-13T15:28:08.150 | O20: 0
A21: =(C21<>"")*COUNTA($C$5:C21) -> 0 | H21: 1 | N21: х | O21: х
A22: =(C22<>"")*COUNTA($C$5:C22) -> 0 | N22: х | O22: х
A23: =(C23<>"")*COUNTA($C$5:C23) -> 0 | N23: х | O23: х
A24: =(C24<>"")*COUNTA($C$5:C24) -> 0 | B24: ИТОГО: | H24: =IF(OR(B20=B20),SUM(H21:H23)) -> 1 | J24: =IF(OR(B20=B20),SUM(J21:J23)) -> 0 | L24: =IF(OR(B20=B20),Таблица13[[#This Row],[8]]-SUM(J21:J23)) -> 1 | M24: =NOW() -> 2023-04-05T00:16:04.350 | N24: х | O24: 0
A25: =(C25<>"")*COUNTA($C$5:C25) -> 4 | B25: Выключатель 1-кл. | C25: 126 | D25: шт. | E25: 1 | F25: =H26 -> 2 | G25: =IF(Таблица13[[#This Row],[2]]="","",IF(G25="",IF(Таблица13[[#This Row],[2]]="","",NOW()),G25)) -> 2022-09-13T15:28:08.150 | O25: 0
A26: =(C26<>"")*COUNTA($C$5:C26) -> 0 | H26: 2 | N26: х | O26: х
A27: =(C27<>"")*COUNTA($C$5:C27) -> 0 | J27: 1 | L27: =IF(OR(B25=B25),F25-SUM(Таблица13[[#This Row],[10]])) -> 1 | N27: х | O27: 0
A28: =(C28<>"")*COUNTA($C$5:C28) -> 0 | N28: х | O28: х
A29: =(C29<>"")*COUNTA($C$5:C29) -> 0 | B29: ИТОГО: | H29: =IF(OR(B25=B25),SUM(H26:H28)) -> 2 | J29: =IF(OR(B25=B25),SUM(J26:J28)) -> 1 | L29: =IF(OR(B25=B25),Таблица13[[#This Row],[8]]-SUM(J26:J28)) -> 1 | M29: =NOW() -> 2023-04-05T00:16:04.360 | N29: х | O29: 0
A30: =(C30<>"")*COUNTA($C$5:C30) -> 5 | B30: Выключатель авт. мод. | C30: 127 | D30: шт. | E30: 3 | F30: =H31 -> 3 | G30: =IF(Таблица13[[#This Row],[2]]="","",IF(G30="",IF(Таблица13[[#This Row],[2]]="","",NOW()),G30)) -> 2022-09-13T15:28:08.150 | O30: 0 | Q30: при значении=0 в ячейке L34 в данной ячейке нужно получить "х"
A31: =(C31<>"")*COUNTA($C$5:C31) -> 0 | H31: 3 | N31: х | O31: х
A32: =(C32<>"")*COUNTA($C$5:C32) -> 0 | J32: 3 | L32: =IF(OR(B30=B30),F30-SUM(Таблица13[[#This Row],[10]])) -> 0 | N32: х | O32: х
A33: =(C33<>"")*COUNTA($C$5:C33) -> 0 | N33: х | O33: х
A34: =(C34<>"")*COUNTA($C$5:C34) -> 0 | B34: ИТОГО: | H34: =IF(OR(B30=B30),SUM(H31:H33)) -> 3 | J34: =IF(OR(B30=B30),SUM(J31:J33)) -> 3 | L34: =IF(OR(B30=B30),Таблица13[[#This Row],[8]]-SUM(J31:J33)) -> 0 | M34: =NOW() -> 2023-04-05T00:16:04.360 | N34: х | O34: х
A35: =(C35<>"")*COUNTA($C$5:C35) -> 6 | B35: Выключатель 2-кл. | C35: 128 | D35: шт. | E35: 2 | F35: =H36 -> 1 | G35: =IF(Таблица13[[#This Row],[2]]="","",IF(G35="",IF(Таблица13[[#This Row],[2]]="","",NOW()),G35)) -> 2022-09-13T15:28:08.150 | O35: 0 | Q35: при значении=0 в ячейке L39 в данной ячейке нужно получить "х"
A36: =(C36<>"")*COUNTA($C$5:C36) -> 0 | H36: 1 | N36: х | O36: х
A37: =(C37<>"")*COUNTA($C$5:C37) -> 0 | J37: 1 | L37: =IF(OR(B35=B35),F35-SUM(Таблица13[[#This Row],[10]])) -> 0 | N37: х | O37: х
A38: =(C38<>"")*COUNTA($C$5:C38) -> 0 | N38: х | O38: х
A39: =(C39<>"")*COUNTA($C$5:C39) -> 0 | B39: ИТОГО: | H39: =IF(OR(B35=B35),SUM(H36:H38)) -> 1 | J39: =IF(OR(B35=B35),SUM(J36:J38)) -> 1 | L39: =IF(OR(B35=B35),Таблица13[[#This Row],[8]]-SUM(J36:J38)) -> 0 | M39: =NOW() -> 2023-04-05T00:16:04.360 | N39: х | O39: х
A40: =(C40<>"")*COUNTA($C$5:C40) -> 7 | B40: Грунтовка | C40: 129 | D40: кг. | E40: 88 | F40: =H41 -> 10 | G40: =IF(Таблица13[[#This Row],[2]]="","",IF(G40="",IF(Таблица13[[#This Row],[2]]="","",NOW()),G40)) -> 2022-09-13T15:28:08.150 | O40: 0
A41: =(C41<>"")*COUNTA($C$5:C41) -> 0 | H41: 10 | N41: х | O41: х
A42: =(C42<>"")*COUNTA($C$5:C42) -> 0 | J42: 0.55 | L42: =IF(OR(B40=B40),H41-SUM(Таблица13[[#This Row],[10]])) -> 9.45 | N42: х | O42: 0 | Q42: по возможности эти строки должны тоже скрваться
A43: =(C43<>"")*COUNTA($C$5:C43) -> 0 | J43: 0.49 | L43: =IF(OR(B40=B40),L42-SUM(Таблица13[[#This Row],[10]])) -> 8.96 | N43: х | O43: 0 | Q43: по возможности эти строки должны тоже скрваться
A44: =(C44<>"")*COUNTA($C$5:C44) -> 0 | J44: 0.51 | L44: =IF(OR(B40=B40),L43-SUM(Таблица13[[#This Row],[10]])) -> 8.45 | N44: х | O44: 0 | Q44: по возможности эти строки должны тоже скрваться
A45: =(C45<>"")*COUNTA($C$5:C45) -> 0 | J45: 0.46 | L45: =IF(OR(B40=B40),L44-SUM(Таблица13[[#This Row],[10]])) -> 7.99 | N45: х | O45: 0 | Q45: по возможности эти строки должны тоже скрваться
A46: =(C46<>"")*COUNTA($C$5:C46) -> 0 | J46: 0.09 | L46: =IF(OR(B41=B41),L45-SUM(Таблица13[[#This Row],[10]])) -> 7.9 | N46: х | O46: 0 | Q46: по возможности эти строки должны тоже скрваться
A47: =(C47<>"")*COUNTA($C$5:C47) -> 0 | J47: 3.82 | L47: =IF(OR(B42=B42),L46-SUM(Таблица13[[#This Row],[10]])) -> 4.08 | N47: х | O47: 0 | Q47: по возможности эти строки должны тоже скрваться
A48: =(C48<>"")*COUNTA($C$5:C48) -> 0 | J48: 3.82 | L48: =IF(OR(B43=B43),L47-SUM(Таблица13[[#This Row],[10]])) -> 0.26 | N48: х | O48: 0 | Q48: по возможности эти строки должны тоже скрваться
A49: =(C49<>"")*COUNTA($C$5:C49) -> 0 | J49: 0.26 | L49: =IF(OR(B44=B44),L48-SUM(Таблица13[[#This Row],[10]])) -> 2.220446049e-16 | N49: х | O49: 0 | Q49: по возможности эти строки должны тоже скрваться
A50: =(C50<>"")*COUNTA($C$5:C50) -> 0 | H50: 3.6 | N50: х | O50: х
A51: =(C51<>"")*COUNTA($C$5:C51) -> 0 | J51: 0.51 | L51: =IF(OR(B40=B40),H50-SUM(Таблица13[[#This Row],[10]])) -> 3.09 | N51: х | O51: 0 | Q51: по возможности эти строки должны тоже скрваться
A52: =(C52<>"")*COUNTA($C$5:C52) -> 0 | J52: 0.72 | L52: =IF(OR(B40=B40),L51-SUM(Таблица13[[#This Row],[10]])) -> 2.37 | N52: х | O52: 0 | Q52: по возможности эти строки должны тоже скрваться
A53: =(C53<>"")*COUNTA($C$5:C53) -> 0 | J53: 0.2 | L53: =IF(OR(B40=B40),L52-SUM(Таблица13[[#This Row],[10]])) -> 2.17 | N53: х | O53: 0 | Q53: по возможности эти строки должны тоже скрваться
A54: =(C54<>"")*COUNTA($C$5:C54) -> 0 | J54: 1.02 | L54: =IF(OR(B40=B40),L53-SUM(Таблица13[[#This Row],[10]])) -> 1.15 | N54: х | O54: 0 | Q54: по возможности эти строки должны тоже скрваться
A55: =(C55<>"")*COUNTA($C$5:C55) -> 0 | J55: 0.3 | L55: =IF(OR(B40=B40),L54-SUM(Таблица13[[#This Row],[10]])) -> 0.85 | N55: х | O55: 0 | Q55: по возможности эти строки должны тоже скрваться
A56: =(C56<>"")*COUNTA($C$5:C56) -> 0 | J56: 0.85 | L56: =IF(OR(B41=B41),L55-SUM(Таблица13[[#This Row],[10]])) -> -1.110223025e-16 | N56: х | O56: х | Q56: по возможности эти строки должны тоже скрваться
A57: =(C57<>"")*COUNTA($C$5:C57) -> 0 | H57: 5.73 | N57: х | O57: х | Q57: по возможности эти строки должны тоже скрваться
A58: =(C58<>"")*COUNTA($C$5:C58) -> 0 | J58: 3.18 | L58: =IF(OR(B40=B40),H57-SUM(Таблица13[[#This Row],[10]])) -> 2.55 | N58: х | O58: 0 | Q58: по возможности эти строки должны тоже скрваться
A59: =(C59<>"")*COUNTA($C$5:C59) -> 0 | N59: х | O59: х
A60: =(C60<>"")*COUNTA($C$5:C60) -> 0 | B60: ИТОГО: | H60: =IF(OR(B40=B40),SUM(H41:H59)) -> 19.33 | J60: =IF(OR(B40=B40),SUM(J41:J59)) -> 16.78 | L60: =IF(OR(B40=B40),Таблица13[[#This Row],[8]]-SUM(J41:J59)) -> 2.55 | M60: =NOW() -> 2023-04-05T00:16:04.360 | N60: х | O60: 0
A61: =(C61<>"")*COUNTA($C$5:C61) -> 8 | B61: Дин рейка | C61: 130 | D61: шт. | E61: 1 | F61: =H62 -> 1 | G61: =IF(Таблица13[[#This Row],[2]]="","",IF(G61="",IF(Таблица13[[#This Row],[2]]="","",NOW()),G61)) -> 2022-09-13T15:28:08.150 | O61: 0 | Q61: при значении=0 в ячейке L65 в данной ячейке нужно получить "х"
A62: =(C62<>"")*COUNTA($C$5:C62) -> 0 | H62: 1 | N62: х | O62: х
A63: =(C63<>"")*COUNTA($C$5:C63) -> 0 | J63: 1 | L63: =IF(OR(B61=B61),H62-SUM(Таблица13[[#This Row],[10]])) -> 0 | N63: х | O63: х
A64: =(C64<>"")*COUNTA($C$5:C64) -> 0 | N64: х | O64: х
A65: =(C65<>"")*COUNTA($C$5:C65) -> 0 | B65: ИТОГО: | H65: =IF(OR(B61=B61),SUM(H62:H64)) -> 1 | J65: =IF(OR(B61=B61),SUM(J62:J64)) -> 1 | L65: =IF(OR(B61=B61),Таблица13[[#This Row],[8]]-SUM(J62:J64)) -> 0 | M65: =NOW() -> 2023-04-05T00:16:04.360 | N65: х | O65: х

Sheet Литс 1
A1: № п/п | B1: Материалы | D1: Единица измерения | F1: Остаток на момент заполнения | G1: Дата заполнения | H1: Дебет | J1: Кредит | L1: Остаток на
B2: наименование | C2: код | D2: наим. | E2: код | L2: кол-во | M2: текущая дата
H3: кол-во (с учетом остатка) | I3: номер и дата накладной | J3: кол-во | K3: номер и дата документа
A4: 1 | B4: 2 | C4: 3 | D4: 4 | E4: 5 | F4: 6 | G4: 7 | H4: 8 | I4: 9 | J4: 10 | K4: 11 | L4: 12 | M4: 13 | N4: 14 | O4: 15
A5: =(C5<>"")*COUNTA($C$5:C5) -> 0 | F5: =H6 -> 0 | G5: =IF(Таблица1[[#This Row],[2]]="","",IF(G5="",IF(Таблица1[[#This Row],[2]]="","",NOW()),G5)) ->  | N5: =IF((C5=""),"х","") -> х | O5: =IF(C5=0,IF(L5<=0,"х",0),0) -> х | Q5: =IF(OR(C5=0,L5<=0),0,2) -> 0
A6: =(C6<>"")*COUNTA($C$5:C6) -> 0 | N6: =IF((C6=""),"х","") -> х | O6: =IF(C6=0,IF(L6<=0,"х",0),0) -> х
A7: =(C7<>"")*COUNTA($C$5:C7) -> 0 | N7: х | O7: х
A8: =(C8<>"")*COUNTA($C$5:C8) -> 0 | N8: х | O8: х
A9: =(C9<>"")*COUNTA($C$5:C9) -> 0 | B9: ИТОГО: | H9: =IF(OR(B5=B5),SUM(H6:H8)) -> 0 | J9: =IF(OR(B5=B5),SUM(J6:J8)) -> 0 | L9: =IF(OR(B5=B5),Таблица1[[#This Row],[8]]-SUM(J6:J8)) -> 0 | M9: =NOW() -> 2023-04-05T00:16:04.350 | N9: х | O9: х
A10: =(C10<>"")*COUNTA($C$5:C10) -> 1 | B10: Авт. выкл. | C10: 123 | D10: шт. | E10: 55 | F10: =H11 -> 1 | G10: =IF(Таблица1[[#This Row],[2]]="","",IF(G10="",IF(Таблица1[[#This Row],[2]]="","",NOW()),G10)) -> 2022-09-13T15:28:08.150 | O10: 0 | Q10: при значении=0 в ячейке L14 в данной ячейке нужно получить "х"
A11: =(C11<>"")*COUNTA($C$5:C11) -> 0 | H11: 1 | N11: х | O11: х
A12: =(C12<>"")*COUNTA($C$5:C12) -> 0 | J12: 1 | L12: =IF(OR(B10=B10),F10-SUM(Таблица1[[#This Row],[10]])) -> 0 | N12: х | O12: х
A13: =(C13<>"")*COUNTA($C$5:C13) -> 0 | N13: х | O13: х
A14: =(C14<>"")*COUNTA($C$5:C14) -> 0 | B14: ИТОГО: | H14: =IF(OR(B10=B10),SUM(H11:H13)) -> 1 | J14: =IF(OR(B10=B10),SUM(J11:J13)) -> 1 | L14: =IF(OR(B10=B10),Таблица1[[#This Row],[8]]-SUM(J11:J13)) -> 0 | M14: =NOW() -> 2023-04-05T00:16:04.360 | N14: х | O14: х
A15: =(C15<>"")*COUNTA($C$5:C15) -> 2 | B15: Валик | C15: 124 | D15: шт. | E15: 55 | F15: =H16 -> 1 | G15: =IF(Таблица1[[#This Row],[2]]="","",IF(G15="",IF(Таблица1[[#This Row],[2]]="","",NOW()),G15)) -> 2022-09-13T15:28:08.150 | O15: 0
A16: =(C16<>"")*COUNTA($C$5:C16) -> 0 | H16: 1 | N16: х | O16: х
A17: =(C17<>"")*COUNTA($C$5:C17) -> 0 | N17: х | O17: х
A18: =(C18<>"")*COUNTA($C$5:C18) -> 0 | N18: х | O18: х
A19: =(C19<>"")*COUNTA($C$5:C19) -> 0 | B19: ИТОГО: | H19: =IF(OR(B15=B15),SUM(H16:H18)) -> 1 | J19: =IF(OR(B15=B15),SUM(J16:J18)) -> 0 | L19: =IF(OR(B15=B15),Таблица1[[#This Row],[8]]-SUM(J16:J18)) -> 1 | M19: =NOW() -> 2023-04-05T00:16:04.350 | N19: х | O19: 0
A20: =(C20<>"")*COUNTA($C$5:C20) -> 3 | B20: Валик | C20: 125 | D20: шт. | E20: 56 | F20: =H21 -> 1 | G20: =IF(Таблица1[[#This Row],[2]]="","",IF(G20="",IF(Таблица1[[#This Row],[2]]="","",NOW()),G20)) -> 2022-09-13T15:28:08.150 | O20: 0
A21: =(C21<>"")*COUNTA($C$5:C21) -> 0 | H21: 1 | N21: х | O21: х
A22: =(C22<>"")*COUNTA($C$5:C22) -> 0 | N22: х | O22: х
A23: =(C23<>"")*COUNTA($C$5:C23) -> 0 | N23: х | O23: х
A24: =(C24<>"")*COUNTA($C$5:C24) -> 0 | B24: ИТОГО: | H24: =IF(OR(B20=B20),SUM(H21:H23)) -> 1 | J24: =IF(OR(B20=B20),SUM(J21:J23)) -> 0 | L24: =IF(OR(B20=B20),Таблица1[[#This Row],[8]]-SUM(J21:J23)) -> 1 | M24: =NOW() -> 2023-04-05T00:16:04.360 | N24: х | O24: 0
A25: =(C25<>"")*COUNTA($C$5:C25) -> 4 | B25: Выключатель 1-кл. | C25: 126 | D25: шт. | E25: 1 | F25: =H26 -> 2 | G25: =IF(Таблица1[[#This Row],[2]]="","",IF(G25="",IF(Таблица1[[#This Row],[2]]="","",NOW()),G25)) -> 2022-09-13T15:28:08.150 | O25: 0
A26: =(C26<>"")*COUNTA($C$5:C26) -> 0 | H26: 2 | N26: х | O26: х
A27: =(C27<>"")*COUNTA($C$5:C27) -> 0 | J27: 1 | L27: =IF(OR(B25=B25),F25-SUM(Таблица1[[#This Row],[10]])) -> 1 | N27: х | O27: 0
A28: =(C28<>"")*COUNTA($C$5:C28) -> 0 | N28: х | O28: х
A29: =(C29<>"")*COUNTA($C$5:C29) -> 0 | B29: ИТОГО: | H29: =IF(OR(B25=B25),SUM(H26:H28)) -> 2 | J29: =IF(OR(B25=B25),SUM(J26:J28)) -> 1 | L29: =IF(OR(B25=B25),Таблица1[[#This Row],[8]]-SUM(J26:J28)) -> 1 | M29: =NOW() -> 2023-04-05T00:16:04.350 | N29: х | O29: 0
A30: =(C30<>"")*COUNTA($C$5:C30) -> 5 | B30: Выключатель авт. мод. | C30: 127 | D30: шт. | E30: 3 | F30: =H31 -> 3 | G30: =IF(Таблица1[[#This Row],[2]]="","",IF(G30="",IF(Таблица1[[#This Row],[2]]="","",NOW()),G30)) -> 2022-09-13T15:28:08.150 | O30: 0 | Q30: при значении=0 в ячейке L34 в данной ячейке нужно получить "х"
A31: =(C31<>"")*COUNTA($C$5:C31) -> 0 | H31: 3 | N31: х | O31: х
A32: =(C32<>"")*COUNTA($C$5:C32) -> 0 | J32: 3 | L32: =IF(OR(B30=B30),F30-SUM(Таблица1[[#This Row],[10]])) -> 0 | N32: х | O32: х
A33: =(C33<>"")*COUNTA($C$5:C33) -> 0 | N33: х | O33: х
A34: =(C34<>"")*COUNTA($C$5:C34) -> 0 | B34: ИТОГО: | H34: =IF(OR(B30=B30),SUM(H31:H33)) -> 3 | J34: =IF(OR(B30=B30),SUM(J31:J33)) -> 3 | L34: =IF(OR(B30=B30),Таблица1[[#This Row],[8]]-SUM(J31:J33)) -> 0 | M34: =NOW() -> 2023-04-05T00:16:04.360 | N34: х | O34: х
A35: =(C35<>"")*COUNTA($C$5:C35) -> 6 | B35: Выключатель 2-кл. | C35: 128 | D35: шт. | E35: 2 | F35: =H36 -> 1 | G35: =IF(Таблица1[[#This Row],[2]]="","",IF(G35="",IF(Таблица1[[#This Row],[2]]="","",NOW()),G35)) -> 2022-09-13T15:28:08.150 | O35: 0 | Q35: при значении=0 в ячейке L39 в данной ячейке нужно получить "х"
A36: =(C36<>"")*COUNTA($C$5:C36) -> 0 | H36: 1 | N36: х | O36: х
A37: =(C37<>"")*COUNTA($C$5:C37) -> 0 | J37: 1 | L37: =IF(OR(B35=B35),F35-SUM(Таблица1[[#This Row],[10]])) -> 0 | N37: х | O37: х
A38: =(C38<>"")*COUNTA($C$5:C38) -> 0 | N38: х | O38: х
A39: =(C39<>"")*COUNTA($C$5:C39) -> 0 | B39: ИТОГО: | H39: =IF(OR(B35=B35),SUM(H36:H38)) -> 1 | J39: =IF(OR(B35=B35),SUM(J36:J38)) -> 1 | L39: =IF(OR(B35=B35),Таблица1[[#This Row],[8]]-SUM(J36:J38)) -> 0 | M39: =NOW() -> 2023-04-05T00:16:04.350 | N39: х | O39: х
A40: =(C40<>"")*COUNTA($C$5:C40) -> 7 | B40: Грунтовка | C40: 129 | D40: кг. | E40: 88 | F40: =H41 -> 10 | G40: =IF(Таблица1[[#This Row],[2]]="","",IF(G40="",IF(Таблица1[[#This Row],[2]]="","",NOW()),G40)) -> 2022-09-13T15:28:08.150 | O40: 0
A41: =(C41<>"")*COUNTA($C$5:C41) -> 0 | H41: 10 | N41: х | O41: х
A42: =(C42<>"")*COUNTA($C$5:C42) -> 0 | J42: 0.55 | L42: =IF(OR(B40=B40),H41-SUM(Таблица1[[#This Row],[10]])) -> 9.45 | N42: х | O42: 0 | Q42: по возможности эти строки должны тоже скрваться
A43: =(C43<>"")*COUNTA($C$5:C43) -> 0 | J43: 0.49 | L43: =IF(OR(B40=B40),L42-SUM(Таблица1[[#This Row],[10]])) -> 8.96 | N43: х | O43: 0 | Q43: по возможности эти строки должны тоже скрваться
A44: =(C44<>"")*COUNTA($C$5:C44) -> 0 | J44: 0.51 | L44: =IF(OR(B40=B40),L43-SUM(Таблица1[[#This Row],[10]])) -> 8.45 | N44: х | O44: 0 | Q44: по возможности эти строки должны тоже скрваться
A45: =(C45<>"")*COUNTA($C$5:C45) -> 0 | J45: 0.46 | L45: =IF(OR(B40=B40),L44-SUM(Таблица1[[#This Row],[10]])) -> 7.99 | N45: х | O45: 0 | Q45: по возможности эти строки должны тоже скрваться
A46: =(C46<>"")*COUNTA($C$5:C46) -> 0 | J46: 0.09 | L46: =IF(OR(B41=B41),L45-SUM(Таблица1[[#This Row],[10]])) -> 7.9 | N46: х | O46: 0 | Q46: по возможности эти строки должны тоже скрваться
A47: =(C47<>"")*COUNTA($C$5:C47) -> 0 | J47: 3.82 | L47: =IF(OR(B42=B42),L46-SUM(Таблица1[[#This Row],[10]])) -> 4.08 | N47: х | O47: 0 | Q47: по возможности эти строки должны тоже скрваться
A48: =(C48<>"")*COUNTA($C$5:C48) -> 0 | J48: 3.82 | L48: =IF(OR(B43=B43),L47-SUM(Таблица1[[#This Row],[10]])) -> 0.26 | N48: х | O48: 0 | Q48: по возможности эти строки должны тоже скрваться
A49: =(C49<>"")*COUNTA($C$5:C49) -> 0 | J49: 0.26 | L49: =IF(OR(B44=B44),L48-SUM(Таблица1[[#This Row],[10]])) -> 2.220446049e-16 | N49: х | O49: 0 | Q49: по возможности эти строки должны тоже скрваться
A50: =(C50<>"")*COUNTA($C$5:C50) -> 0 | H50: 3.6 | N50: х | O50: х
A51: =(C51<>"")*COUNTA($C$5:C51) -> 0 | J51: 0.51 | L51: =IF(OR(B40=B40),H50-SUM(Таблица1[[#This Row],[10]])) -> 3.09 | N51: х | O51: 0 | Q51: по возможности эти строки должны тоже скрваться
A52: =(C52<>"")*COUNTA($C$5:C52) -> 0 | J52: 0.72 | L52: =IF(OR(B40=B40),L51-SUM(Таблица1[[#This Row],[10]])) -> 2.37 | N52: х | O52: 0 | Q52: по возможности эти строки должны тоже скрваться
A53: =(C53<>"")*COUNTA($C$5:C53) -> 0 | J53: 0.2 | L53: =IF(OR(B40=B40),L52-SUM(Таблица1[[#This Row],[10]])) -> 2.17 | N53: х | O53: 0 | Q53: по возможности эти строки должны тоже скрваться
A54: =(C54<>"")*COUNTA($C$5:C54) -> 0 | J54: 1.02 | L54: =IF(OR(B40=B40),L53-SUM(Таблица1[[#This Row],[10]])) -> 1.15 | N54: х | O54: 0 | Q54: по возможности эти строки должны тоже скрваться
A55: =(C55<>"")*COUNTA($C$5:C55) -> 0 | J55: 0.3 | L55: =IF(OR(B40=B40),L54-SUM(Таблица1[[#This Row],[10]])) -> 0.85 | N55: х | O55: 0 | Q55: по возможности эти строки должны тоже скрваться
A56: =(C56<>"")*COUNTA($C$5:C56) -> 0 | J56: 0.85 | L56: =IF(OR(B41=B41),L55-SUM(Таблица1[[#This Row],[10]])) -> -1.110223025e-16 | N56: х | O56: х | Q56: по возможности эти строки должны тоже скрваться
A57: =(C57<>"")*COUNTA($C$5:C57) -> 0 | H57: 5.73 | N57: х | O57: х | Q57: по возможности эти строки должны тоже скрваться
A58: =(C58<>"")*COUNTA($C$5:C58) -> 0 | J58: 3.18 | L58: =IF(OR(B40=B40),H57-SUM(Таблица1[[#This Row],[10]])) -> 2.55 | N58: х | O58: 0 | Q58: по возможности эти строки должны тоже скрваться
A59: =(C59<>"")*COUNTA($C$5:C59) -> 0 | N59: х | O59: х
A60: =(C60<>"")*COUNTA($C$5:C60) -> 0 | B60: ИТОГО: | H60: =IF(OR(B40=B40),SUM(H41:H59)) -> 19.33 | J60: =IF(OR(B40=B40),SUM(J41:J59)) -> 16.78 | L60: =IF(OR(B40=B40),Таблица1[[#This Row],[8]]-SUM(J41:J59)) -> 2.55 | M60: =NOW() -> 2023-04-05T00:16:04.360 | N60: х | O60: 0
A61: =(C61<>"")*COUNTA($C$5:C61) -> 8 | B61: Дин рейка | C61: 130 | D61: шт. | E61: 1 | F61: =H62 -> 1 | G61: =IF(Таблица1[[#This Row],[2]]="","",IF(G61="",IF(Таблица1[[#This Row],[2]]="","",NOW()),G61)) -> 2022-09-13T15:28:08.150 | O61: 0 | Q61: при значении=0 в ячейке L65 в данной ячейке нужно получить "х"
A62: =(C62<>"")*COUNTA($C$5:C62) -> 0 | H62: 1 | N62: х | O62: х
A63: =(C63<>"")*COUNTA($C$5:C63) -> 0 | J63: 1 | L63: =IF(OR(B61=B61),H62-SUM(Таблица1[[#This Row],[10]])) -> 0 | N63: х | O63: х
A64: =(C64<>"")*COUNTA($C$5:C64) -> 0 | N64: х | O64: х
A65: =(C65<>"")*COUNTA($C$5:C3445) -> 0 | B65: ИТОГО: | H65: =IF(OR(B61=B61),SUM(H62:H64)) -> 1 | J65: =IF(OR(B61=B61),SUM(J62:J64)) -> 1 | L65: =IF(OR(B61=B61),Таблица1[[#This Row],[8]]-SUM(J62:J64)) -> 0 | M65: =NOW() -> 2023-04-05T00:16:04.360 | N65: х | O65: х
A66: =(F66<>"")*COUNTA($F$5:F66) -> 0 | G66: =IF(Таблица1[[#This Row],[2]]="","",IF(G66="",IF(Таблица1[[#This Row],[2]]="","",NOW()),G66)) ->  | H66: =SUMIF(Таблица1[2],Таблица1[[#This Row],[2]],H67:H68) -> 0 | J66: =IF(OR(Таблица1[[#This Row],[2]]=Таблица1[[#This Row],[2]]),SUM(F66,-J67:J76),1) ->  | L66: =IF(OR(B62=B62),Таблица1[[#This Row],[8]]-SUM(J63:J65)) -> -2 | M66: =NOW() -> 2023-04-05T00:16:04.360 | N66: =IF((C66=""),"х","") -> х | O66: =IF(C66=0,IF(L66<=0,"х",0),0) -> х
A67: =(F67<>"")*COUNTA($F$5:F67) -> 0 | G67: =IF(Таблица1[[#This Row],[2]]="","",IF(G67="",IF(Таблица1[[#This Row],[2]]="","",NOW()),G67)) ->  | H67: =SUMIF(Таблица1[2],Таблица1[[#This Row],[2]],H68:H69) -> 0 | J67: =IF(OR(Таблица1[[#This Row],[2]]=Таблица1[[#This Row],[2]]),SUM(F67,-J68:J77),1) ->  | L67: =IF(OR(B63=B63),Таблица1[[#This Row],[8]]-SUM(J64:J66)) ->  | M67: 2023-04-05T00:16:04.360 | N67: х
A68: =(F68<>"")*COUNTA($F$5:F68) -> 0 | G68: =IF(Таблица1[[#This Row],[2]]="","",IF(G68="",IF(Таблица1[[#This Row],[2]]="","",NOW()),G68)) ->  | H68: =SUMIF(Таблица1[2],Таблица1[[#This Row],[2]],H69:H70) -> 0 | J68: =IF(OR(Таблица1[[#This Row],[2]]=Таблица1[[#This Row],[2]]),SUM(F68,-J69:J78),1) ->  | L68: =IF(OR(B64=B64),Таблица1[[#This Row],[8]]-SUM(J65:J67)) ->  | M68: 2023-04-05T00:16:04.350 | N68: х
A69: =(F69<>"")*COUNTA($F$5:F69) -> 0 | G69: =IF(Таблица1[[#This Row],[2]]="","",IF(G69="",IF(Таблица1[[#This Row],[2]]="","",NOW()),G69)) ->  | H69: =SUMIF(Таблица1[2],Таблица1[[#This Row],[2]],H70:H71) -> 0 | J69: =IF(OR(Таблица1[[#This Row],[2]]=Таблица1[[#This Row],[2]]),SUM(F69,-J70:J79),1) ->  | L69: =IF(OR(B65=B65),Таблица1[[#This Row],[8]]-SUM(J66:J68)) ->  | M69: 2023-04-05T00:16:04.360 | N69: х
A70: =(F70<>"")*COUNTA($F$5:F70) -> 0 | G70: =IF(Таблица1[[#This Row],[2]]="","",IF(G70="",IF(Таблица1[[#This Row],[2]]="","",NOW()),G70)) ->  | H70: =SUMIF(Таблица1[2],Таблица1[[#This Row],[2]],H71:H72) -> 0 | J70: =IF(OR(Таблица1[[#This Row],[2]]=Таблица1[[#This Row],[2]]),SUM(F70,-J71:J80),1) ->  | L70: =IF(OR(B66=B66),Таблица1[[#This Row],[8]]-SUM(J67:J69)) ->  | M70: 2023-04-05T00:16:04.360 | N70: х
A71: =(F71<>"")*COUNTA($F$5:F71) -> 0 | G71: =IF(Таблица1[[#This Row],[2]]="","",IF(G71="",IF(Таблица1[[#This Row],[2]]="","",NOW()),G71)) ->  | H71: =SUMIF(Таблица1[2],Таблица1[[#This Row],[2]],H72:H73) -> 0 | J71: =IF(OR(Таблица1[[#This Row],[2]]=Таблица1[[#This Row],[2]]),SUM(F71,-J72:J81),1) ->  | L71: =IF(OR(B67=B67),Таблица1[[#This Row],[8]]-SUM(J68:J70)) ->  | M71: 2023-04-05T00:16:04.360 | N71: х
A72: =(F72<>"")*COUNTA($F$5:F72) -> 0 | G72: =IF(Таблица1[[#This Row],[2]]="","",IF(G72="",IF(Таблица1[[#This Row],[2]]="","",NOW()),G72)) ->  | H72: =SUMIF(Таблица1[2],Таблица1[[#This Row],[2]],H73:H74) -> 0 | J72: =IF(OR(Таблица1[[#This Row],[2]]=Таблица1[[#This Row],[2]]),SUM(F72,-J73:J82),1) ->  | L72: =IF(OR(B68=B68),Таблица1[[#This Row],[8]]-SUM(J69:J71)) ->  | M72: 2023-04-05T00:16:04.350 | N72: х
A73: =(F73<>"")*COUNTA($F$5:F73) -> 0 | G73: =IF(Таблица1[[#This Row],[2]]="","",IF(G73="",IF(Таблица1[[#This Row],[2]]="","",NOW()),G73)) ->  | H73: =SUMIF(Таблица1[2],Таблица1[[#This Row],[2]],H74:H75) -> 0 | J73: =IF(OR(Таблица1[[#This Row],[2]]=Таблица1[[#This Row],[2]]),SUM(F73,-J74:J83),1) ->  | L73: =IF(OR(B69=B69),Таблица1[[#This Row],[8]]-SUM(J70:J72)) ->  | M73: 2023-04-05T00:16:04.360 | N73: х
A74: =(F74<>"")*COUNTA($F$5:F74) -> 0 | G74: =IF(Таблица1[[#This Row],[2]]="","",IF(G74="",IF(Таблица1[[#This Row],[2]]="","",NOW()),G74)) ->  | H74: =SUMIF(Таблица1[2],Таблица1[[#This Row],[2]],H75:H76) -> 0 | J74: =IF(OR(Таблица1[[#This Row],[2]]=Таблица1[[#This Row],[2]]),SUM(F74,-J75:J84),1) ->  | L74: =IF(OR(B70=B70),Таблица1[[#This Row],[8]]-SUM(J71:J73)) ->  | M74: 2023-04-05T00:16:04.360 | N74: х
A75: =(F75<>"")*COUNTA($F$5:F75) -> 0 | G75: =IF(Таблица1[[#This Row],[2]]="","",IF(G75="",IF(Таблица1[[#This Row],[2]]="","",NOW()),G75)) ->  | H75: =SUMIF(Таблица1[2],Таблица1[[#This Row],[2]],H76:H77) -> 0 | J75: =IF(OR(Таблица1[[#This Row],[2]]=Таблица1[[#This Row],[2]]),SUM(F75,-J76:J85),1) ->  | L75: =IF(OR(B71=B71),Таблица1[[#This Row],[8]]-SUM(J72:J74)) ->  | M75: 2023-04-05T00:16:04.360 | N75: х
A76: =(F76<>"")*COUNTA($F$5:F76) -> 0 | G76: =IF(Таблица1[[#This Row],[2]]="","",IF(G76="",IF(Таблица1[[#This Row],[2]]="","",NOW()),G76)) ->  | H76: =SUMIF(Таблица1[2],Таблица1[[#This Row],[2]],H77:H78) -> 0 | J76: =IF(OR(Таблица1[[#This Row],[2]]=Таблица1[[#This Row],[2]]),SUM(F76,-J77:J86),1) ->  | L76: =IF(OR(B72=B72),Таблица1[[#This Row],[8]]-SUM(J73:J75)) ->  | M76: 2023-04-05T00:16:04.350 | N76: х
A77: =(F77<>"")*COUNTA($F$5:F77) -> 0 | G77: =IF(Таблица1[[#This Row],[2]]="","",IF(G77="",IF(Таблица1[[#This Row],[2]]="","",NOW()),G77)) ->  | H77: =SUMIF(Таблица1[2],Таблица1[[#This Row],[2]],H78:H79) -> 0 | J77: =IF(OR(Таблица1[[#This Row],[2]]=Таблица1[[#This Row],[2]]),SUM(F77,-J78:J87),1) ->  | L77: =IF(OR(B73=B73),Таблица1[[#This Row],[8]]-SUM(J74:J76)) ->  | M77: 2023-04-05T00:16:04.360 | N77: х
A78: =(F78<>"")*COUNTA($F$5:F78) -> 0 | G78: =IF(Таблица1[[#This Row],[2]]="","",IF(G78="",IF(Таблица1[[#This Row],[2]]="","",NOW()),G78)) ->  | H78: =SUMIF(Таблица1[2],Таблица1[[#This Row],[2]],H79:H80) -> 0 | J78: =IF(OR(Таблица1[[#This Row],[2]]=Таблица1[[#This Row],[2]]),SUM(F78,-J79:J88),1) ->  | L78: =IF(OR(B74=B74),Таблица1[[#This Row],[8]]-SUM(J75:J77)) ->  | M78: 2023-04-05T00:16:04.360 | N78: х
A79: =(F79<>"")*COUNTA($F$5:F79) -> 0 | G79: =IF(Таблица1[[#This Row],[2]]="","",IF(G79="",IF(Таблица1[[#This Row],[2]]="","",NOW()),G79)) ->  | H79: =SUMIF(Таблица1[2],Таблица1[[#This Row],[2]],H80:H81) -> 0 | J79: =IF(OR(Таблица1[[#This Row],[2]]=Таблица1[[#This Row],[2]]),SUM(F79,-J80:J89),1) ->  | L79: =IF(OR(B75=B75),Таблица1[[#This Row],[8]]-SUM(J76:J78)) ->  | M79: 2023-04-05T00:16:04.360 | N79: х
A80: =(F80<>"")*COUNTA($F$5:F80) -> 0 | G80: =IF(Таблица1[[#This Row],[2]]="","",IF(G80="",IF(Таблица1[[#This Row],[2]]="","",NOW()),G80)) ->  | H80: =SUMIF(Таблица1[2],Таблица1[[#This Row],[2]],H81:H82) -> 0 | J80: =IF(OR(Таблица1[[#This Row],[2]]=Таблица1[[#This Row],[2]]),SUM(F80,-J81:J90),1) ->  | L80: =IF(OR(B76=B76),Таблица1[[#This Row],[8]]-SUM(J77:J79)) ->  | M80: 2023-04-05T00:16:04.350 | N80: х
A81: =(F81<>"")*COUNTA($F$5:F81) -> 0 | G81: =IF(Таблица1[[#This Row],[2]]="","",IF(G81="",IF(Таблица1[[#This Row],[2]]="","",NOW()),G81)) ->  | H81: =SUMIF(Таблица1[2],Таблица1[[#This Row],[2]],H82:H83) -> 0 | J81: =IF(OR(Таблица1[[#This Row],[2]]=Таблица1[[#This Row],[2]]),SUM(F81,-J82:J90),1) ->  | L81: =IF(OR(B77=B77),Таблица1[[#This Row],[8]]-SUM(J78:J80)) ->  | M81: 2023-04-05T00:16:04.360 | N81: х
A82: =(F82<>"")*COUNTA($F$5:F82) -> 0 | G82: =IF(Таблица1[[#This Row],[2]]="","",IF(G82="",IF(Таблица1[[#This Row],[2]]="","",NOW()),G82)) ->  | H82: =SUMIF(Таблица1[2],Таблица1[[#This Row],[2]],H83:H84) -> 0 | J82: =IF(OR(Таблица1[[#This Row],[2]]=Таблица1[[#This Row],[2]]),SUM(F82,-J83:J90),1) ->  | L82: =IF(OR(B78=B78),Таблица1[[#This Row],[8]]-SUM(J79:J81)) ->  | M82: 2023-04-05T00:16:04.360 | N82: х
A83: =(F83<>"")*COUNTA($F$5:F83) -> 0 | G83: =IF(Таблица1[[#This Row],[2]]="","",IF(G83="",IF(Таблица1[[#This Row],[2]]="","",NOW()),G83)) ->  | H83: =SUMIF(Таблица1[2],Таблица1[[#This Row],[2]],H84:H85) -> 0 | J83: =IF(OR(Таблица1[[#This Row],[2]]=Таблица1[[#This Row],[2]]),SUM(F83,-J84:J90),1) ->  | L83: =IF(OR(B79=B79),Таблица1[[#This Row],[8]]-SUM(J80:J82)) ->  | M83: 2023-04-05T00:16:04.360 | N83: х
A84: =(F84<>"")*COUNTA($F$5:F84) -> 0 | G84: =IF(Таблица1[[#This Row],[2]]="","",IF(G84="",IF(Таблица1[[#This Row],[2]]="","",NOW()),G84)) ->  | H84: =SUMIF(Таблица1[2],Таблица1[[#This Row],[2]],H85:H86) -> 0 | J84: =IF(OR(Таблица1[[#This Row],[2]]=Таблица1[[#This Row],[2]]),SUM(F84,-J85:J90),1) ->  | L84: =IF(OR(B80=B80),Таблица1[[#This Row],[8]]-SUM(J81:J83)) ->  | M84: 2023-04-05T00:16:04.350 | N84: х
A85: =(F85<>"")*COUNTA($F$5:F85) -> 0 | G85: =IF(Таблица1[[#This Row],[2]]="","",IF(G85="",IF(Таблица1[[#This Row],[2]]="","",NOW()),G85)) ->  | H85: =SUMIF(Таблица1[2],Таблица1[[#This Row],[2]],H86:H87) -> 0 | J85: =IF(OR(Таблица1[[#This Row],[2]]=Таблица1[[#This Row],[2]]),SUM(F85,-J86:J90),1) ->  | L85: =IF(OR(B81=B81),Таблица1[[#This Row],[8]]-SUM(J82:J84)) ->  | M85: 2023-04-05T00:16:04.360 | N85: х
A86: =(F86<>"")*COUNTA($F$5:F86) -> 0 | G86: =IF(Таблица1[[#This Row],[2]]="","",IF(G86="",IF(Таблица1[[#This Row],[2]]="","",NOW()),G86)) ->  | H86: =SUMIF(Таблица1[2],Таблица1[[#This Row],[2]],H87:H88) -> 0 | J86: =IF(OR(Таблица1[[#This Row],[2]]=Таблица1[[#This Row],[2]]),SUM(F86,-J87:J90),1) ->  | L86: =IF(OR(B82=B82),Таблица1[[#This Row],[8]]-SUM(J83:J85)) ->  | M86: 2023-04-05T00:16:04.360 | N86: х
A87: =(F87<>"")*COUNTA($F$5:F87) -> 0 | G87: =IF(Таблица1[[#This Row],[2]]="","",IF(G87="",IF(Таблица1[[#This Row],[2]]="","",NOW()),G87)) ->  | H87: =SUMIF(Таблица1[2],Таблица1[[#This Row],[2]],H88:H89) -> 0 | J87: =IF(OR(Таблица1[[#This Row],[2]]=Таблица1[[#This Row],[2]]),SUM(F87,-J88:J90),1) ->  | L87: =IF(OR(B83=B83),Таблица1[[#This Row],[8]]-SUM(J84:J86)) ->  | M87: 2023-04-05T00:16:04.360 | N87: х
A88: =(F88<>"")*COUNTA($F$5:F88) -> 0 | G88: =IF(Таблица1[[#This Row],[2]]="","",IF(G88="",IF(Таблица1[[#This Row],[2]]="","",NOW()),G88)) ->  | H88: =SUMIF(Таблица1[2],Таблица1[[#This Row],[2]],H89:H90) -> 0 | J88: =IF(OR(Таблица1[[#This Row],[2]]=Таблица1[[#This Row],[2]]),SUM(F88,-J89:J90),1) ->  | L88: =IF(OR(B84=B84),Таблица1[[#This Row],[8]]-SUM(J85:J87)) ->  | M88: 2023-04-05T00:16:04.350 | N88: х
A89: =(F89<>"")*COUNTA($F$5:F89) -> 0 | G89: =IF(Таблица1[[#This Row],[2]]="","",IF(G89="",IF(Таблица1[[#This Row],[2]]="","",NOW()),G89)) ->  | H89: =SUMIF(Таблица1[2],Таблица1[[#This Row],[2]],H90:H90) -> 0 | J89: =IF(OR(Таблица1[[#This Row],[2]]=Таблица1[[#This Row],[2]]),SUM(F89,-J90:J90),1) ->  | L89: =IF(OR(B85=B85),Таблица1[[#This Row],[8]]-SUM(J86:J88)) ->  | M89: 2023-04-05T00:16:04.360 | N89: х
A90: =(F90<>"")*COUNTA($F$5:F90) -> 0 | G90: =IF(Таблица1[[#This Row],[2]]="","",IF(G90="",IF(Таблица1[[#This Row],[2]]="","",NOW()),G90)) ->  | H90: =SUMIF(Таблица1[2],Таблица1[[#This Row],[2]],#REF!) ->  | J90: =IF(OR(Таблица1[[#This Row],[2]]=Таблица1[[#This Row],[2]]),SUM(F90,-#REF!),1) ->  | L90: =IF(OR(B86=B86),Таблица1[[#This Row],[8]]-SUM(J87:J89)) ->  | M90: 2023-04-05T00:16:04.360 | N90: х
A91: =(F91<>"")*COUNTA($F$5:F91) -> 0 | G91: =IF(Таблица1[[#This Row],[2]]="","",IF(G91="",IF(Таблица1[[#This Row],[2]]="","",NOW()),G91)) ->  | H91: =SUMIF(Таблица1[2],Таблица1[[#This Row],[2]],H92:H93) -> 0 | J91: =IF(OR(Таблица1[[#This Row],[2]]=Таблица1[[#This Row],[2]]),SUM(F91,-J92:J101),1) -> 0 | L91: =IF(OR(#REF!=#REF!),Таблица1[[#This Row],[8]]-SUM(#REF!)) ->  | M91: =NOW() -> 2023-04-05T00:16:04.360 | N91: =IF((C91=""),"х","") -> х | O91: =IF(C91=0,IF(L91<=0,"х",0),0) -> 
A92: =(F92<>"")*COUNTA($F$5:F92) -> 0 | G92: =IF(Таблица1[[#This Row],[2]]="","",IF(G92="",IF(Таблица1[[#This Row],[2]]="","",NOW()),G92)) ->  | H92: =SUMIF(Таблица1[2],Таблица1[[#This Row],[2]],H93:H94) -> 0 | J92: =IF(OR(Таблица1[[#This Row],[2]]=Таблица1[[#This Row],[2]]),SUM(F92,-J93:J102),1) -> 0 | L92: =IF(OR(#REF!=#REF!),Таблица1[[#This Row],[8]]-SUM(J91:J91)) ->  | M92: 2023-04-05T00:16:04.360 | N92: х
A93: =(F93<>"")*COUNTA($F$5:F93) -> 0 | G93: =IF(Таблица1[[#This Row],[2]]="","",IF(G93="",IF(Таблица1[[#This Row],[2]]="","",NOW()),G93)) ->  | H93: =SUMIF(Таблица1[2],Таблица1[[#This Row],[2]],H94:H95) -> 0 | J93: =IF(OR(Таблица1[[#This Row],[2]]=Таблица1[[#This Row],[2]]),SUM(F93,-J94:J103),1) -> 0 | L93: =IF(OR(#REF!=#REF!),Таблица1[[#This Row],[8]]-SUM(J91:J92)) ->  | M93: 2023-04-05T00:16:04.350 | N93: х
A94: =(F94<>"")*COUNTA($F$5:F94) -> 0 | G94: =IF(Таблица1[[#This Row],[2]]="","",IF(G94="",IF(Таблица1[[#This Row],[2]]="","",NOW()),G94)) ->  | H94: =SUMIF(Таблица1[2],Таблица1[[#This Row],[2]],H95:H96) -> 0 | J94: =IF(OR(Таблица1[[#This Row],[2]]=Таблица1[[#This Row],[2]]),SUM(F94,-J95:J104),1) -> 0 | L94: =IF(OR(#REF!=#REF!),Таблица1[[#This Row],[8]]-SUM(J91:J93)) ->  | M94: 2023-04-05T00:16:04.360 | N94: х
A95: =(F95<>"")*COUNTA($F$5:F95) -> 0 | G95: =IF(Таблица1[[#This Row],[2]]="","",IF(G95="",IF(Таблица1[[#This Row],[2]]="","",NOW()),G95)) ->  | H95: =SUMIF(Таблица1[2],Таблица1[[#This Row],[2]],H96:H97) -> 0 | J95: =IF(OR(Таблица1[[#This Row],[2]]=Таблица1[[#This Row],[2]]),SUM(F95,-J96:J105),1) -> 0 | L95: =IF(OR(B91=B91),Таблица1[[#This Row],[8]]-SUM(J92:J94)) -> 0 | M95: 2023-04-05T00:16:04.360 | N95: х | O95: х
A96: =(F96<>"")*COUNTA($F$5:F96) -> 0 | G96: =IF(Таблица1[[#This Row],[2]]="","",IF(G96="",IF(Таблица1[[#This Row],[2]]="","",NOW()),G96)) ->  | H96: =SUMIF(Таблица1[2],Таблица1[[#This Row],[2]],H97:H98) -> 0 | J96: =IF(OR(Таблица1[[#This Row],[2]]=Таблица1[[#This Row],[2]]),SUM(F96,-J97:J106),1) -> 0 | L96: =IF(OR(B92=B92),Таблица1[[#This Row],[8]]-SUM(J93:J95)) -> 0 | M96: 2023-04-05T00:16:04.360 | N96: х | O96: х
A97: =(F97<>"")*COUNTA($F$5:F97) -> 0 | G97: =IF(Таблица1[[#This Row],[2]]="","",IF(G97="",IF(Таблица1[[#This Row],[2]]="","",NOW()),G97)) ->  | H97: =SUMIF(Таблица1[2],Таблица1[[#This Row],[2]],H98:H99) -> 0 | J97: =IF(OR(Таблица1[[#This Row],[2]]=Таблица1[[#This Row],[2]]),SUM(F97,-J98:J107),1) -> 0 | L97: =IF(OR(B93=B93),Таблица1[[#This Row],[8]]-SUM(J94:J96)) -> 0 | M97: 2023-04-05T00:16:04.350 | N97: х | O97: х
A98: =(F98<>"")*COUNTA($F$5:F98) -> 0 | G98: =IF(Таблица1[[#This Row],[2]]="","",IF(G98="",IF(Таблица1[[#This Row],[2]]="","",NOW()),G98)) ->  | H98: =SUMIF(Таблица1[2],Таблица1[[#This Row],[2]],H99:H100) -> 0 | J98: =IF(OR(Таблица1[[#This Row],[2]]=Таблица1[[#This Row],[2]]),SUM(F98,-J99:J108),1) -> 0 | L98: =IF(OR(B94=B94),Таблица1[[#This Row],[8]]-SUM(J95:J97)) -> 0 | M98: 2023-04-05T00:16:04.360 | N98: х | O98: х
A99: =(F99<>"")*COUNTA($F$5:F99) -> 0 | G99: =IF(Таблица1[[#This Row],[2]]="","",IF(G99="",IF(Таблица1[[#This Row],[2]]="","",NOW()),G99)) ->  | H99: =SUMIF(Таблица1[2],Таблица1[[#This Row],[2]],H100:H101) -> 0 | J99: =IF(OR(Таблица1[[#This Row],[2]]=Таблица1[[#This Row],[2]]),SUM(F99,-J100:J109),1) -> 0 | L99: =IF(OR(B95=B95),Таблица1[[#This Row],[8]]-SUM(J96:J98)) -> 0 | M99: 2023-04-05T00:16:04.360 | N99: х | O99: х
A100: =(F100<>"")*COUNTA($F$5:F100) -> 0 | G100: =IF(Таблица1[[#This Row],[2]]="","",IF(G100="",IF(Таблица1[[#This Row],[2]]="","",NOW()),G100)) ->  | H100: =SUMIF(Таблица1[2],Таблица1[[#This Row],[2]],H101:H102) -> 0 | J100: =IF(OR(Таблица1[[#This Row],[2]]=Таблица1[[#This Row],[2]]),SUM(F100,-J101:J110),1) -> 0 | L100: =IF(OR(B96=B96),Таблица1[[#This Row],[8]]-SUM(J97:J99)) -> 0 | M100: 2023-04-05T00:16:04.360 | N100: х | O100: х
A101: =(F101<>"")*COUNTA($F$5:F101) -> 0 | G101: =IF(Таблица1[[#This Row],[2]]="","",IF(G101="",IF(Таблица1[[#This Row],[2]]="","",NOW()),G101)) ->  | H101: =SUMIF(Таблица1[2],Таблица1[[#This Row],[2]],H102:H103) -> 0 | J101: =IF(OR(Таблица1[[#This Row],[2]]=Таблица1[[#This Row],[2]]),SUM(F101,-J102:J111),1) -> 0 | L101: =IF(OR(B97=B97),Таблица1[[#This Row],[8]]-SUM(J98:J100)) -> 0 | M101: 2023-04-05T00:16:04.350 | N101: х | O101: х
A102: =(F102<>"")*COUNTA($F$5:F102) -> 0 | G102: =IF(Таблица1[[#This Row],[2]]="","",IF(G102="",IF(Таблица1[[#This Row],[2]]="","",NOW()),G102)) ->  | H102: =SUMIF(Таблица1[2],Таблица1[[#This Row],[2]],H103:H104) -> 0 | J102: =IF(OR(Таблица1[[#This Row],[2]]=Таблица1[[#This Row],[2]]),SUM(F102,-J103:J112),1) -> 0 | L102: =IF(OR(B98=B98),Таблица1[[#This Row],[8]]-SUM(J99:J101)) -> 0 | M102: 2023-04-05T00:16:04.360 | N102: х | O102: х
A103: =(F103<>"")*COUNTA($F$5:F103) -> 0 | G103: =IF(Таблица1[[#This Row],[2]]="","",IF(G103="",IF(Таблица1[[#This Row],[2]]="","",NOW()),G103)) ->  | H103: =SUMIF(Таблица1[2],Таблица1[[#This Row],[2]],H104:H105) -> 0 | J103: =IF(OR(Таблица1[[#This Row],[2]]=Таблица1[[#This Row],[2]]),SUM(F103,-J104:J113),1) -> 0 | L103: =IF(OR(B99=B99),Таблица1[[#This Row],[8]]-SUM(J100:J102)) -> 0 | M103: 2023-04-05T00:16:04.360 | N103: х | O103: х
A104: =(F104<>"")*COUNTA($F$5:F104) -> 0 | G104: =IF(Таблица1[[#This Row],[2]]="","",IF(G104="",IF(Таблица1[[#This Row],[2]]="","",NOW()),G104)) ->  | H104: =SUMIF(Таблица1[2],Таблица1[[#This Row],[2]],H105:H106) -> 0 | J104: =IF(OR(Таблица1[[#This Row],[2]]=Таблица1[[#This Row],[2]]),SUM(F104,-J105:J114),1) -> 0 | L104: =IF(OR(B100=B100),Таблица1[[#This Row],[8]]-SUM(J101:J103)) -> 0 | M104: 2023-04-05T00:16:04.360 | N104: х | O104: х
A105: =(F105<>"")*COUNTA($F$5:F105) -> 0 | G105: =IF(Таблица1[[#This Row],[2]]="","",IF(G105="",IF(Таблица1[[#This Row],[2]]="","",NOW()),G105)) ->  | H105: =SUMIF(Таблица1[2],Таблица1[[#This Row],[2]],H106:H107) -> 0 | J105: =IF(OR(Таблица1[[#This Row],[2]]=Таблица1[[#This Row],[2]]),SUM(F105,-J106:J115),1) -> 0 | L105: =IF(OR(B101=B101),Таблица1[[#This Row],[8]]-SUM(J102:J104)) -> 0 | M105: 2023-04-05T00:16:04.350 | N105: х | O105: х
A106: =(F106<>"")*COUNTA($F$5:F106) -> 0 | G106: =IF(Таблица1[[#This Row],[2]]="","",IF(G106="",IF(Таблица1[[#This Row],[2]]="","",NOW()),G106)) ->  | H106: =SUMIF(Таблица1[2],Таблица1[[#This Row],[2]],H107:H108) -> 0 | J106: =IF(OR(Таблица1[[#This Row],[2]]=Таблица1[[#This Row],[2]]),SUM(F106,-J107:J116),1) -> 0 | L106: =IF(OR(B102=B102),Таблица1[[#This Row],[8]]-SUM(J103:J105)) -> 0 | M106: 2023-04-05T00:16:04.360 | N106: х | O106: х
A107: =(F107<>"")*COUNTA($F$5:F107) -> 0 | G107: =IF(Таблица1[[#This Row],[2]]="","",IF(G107="",IF(Таблица1[[#This Row],[2]]="","",NOW()),G107)) ->  | H107: =SUMIF(Таблица1[2],Таблица1[[#This Row],[2]],H108:H109) -> 0 | J107: =IF(OR(Таблица1[[#This Row],[2]]=Таблица1[[#This Row],[2]]),SUM(F107,-J108:J117),1) -> 0 | L107: =IF(OR(B103=B103),Таблица1[[#This Row],[8]]-SUM(J104:J106)) -> 0 | M107: 2023-04-05T00:16:04.360 | N107: х | O107: х
A108: =(F108<>"")*COUNTA($F$5:F108) -> 0 | G108: =IF(Таблица1[[#This Row],[2]]="","",IF(G108="",IF(Таблица1[[#This Row],[2]]="","",NOW()),G108)) ->  | H108: =SUMIF(Таблица1[2],Таблица1[[#This Row],[2]],H109:H110) -> 0 | J108: =IF(OR(Таблица1[[#This Row],[2]]=Таблица1[[#This Row],[2]]),SUM(F108,-J109:J118),1) -> 0 | L108: =IF(OR(B104=B104),Таблица1[[#This Row],[8]]-SUM(J105:J107)) -> 0 | M108: 2023-04-05T00:16:04.360 | N108: х | O108: х
A109: =(F109<>"")*COUNTA($F$5:F109) -> 0 | G109: =IF(Таблица1[[#This Row],[2]]="","",IF(G109="",IF(Таблица1[[#This Row],[2]]="","",NOW()),G109)) ->  | H109: =SUMIF(Таблица1[2],Таблица1[[#This Row],[2]],H110:H111) -> 0 | J109: =IF(OR(Таблица1[[#This Row],[2]]=Таблица1[[#This Row],[2]]),SUM(F109,-J110:J119),1) -> 0 | L109: =IF(OR(B105=B105),Таблица1[[#This Row],[8]]-SUM(J106:J108)) -> 0 | M109: 2023-04-05T00:16:04.350 | N109: х | O109: х
A110: =(F110<>"")*COUNTA($F$5:F110) -> 0 | G110: =IF(Таблица1[[#This Row],[2]]="","",IF(G110="",IF(Таблица1[[#This Row],[2]]="","",NOW()),G110)) ->  | H110: =SUMIF(Таблица1[2],Таблица1[[#This Row],[2]],H111:H112) -> 0 | J110: =IF(OR(Таблица1[[#This Row],[2]]=Таблица1[[#This Row],[2]]),SUM(F110,-J111:J120),1) -> 0 | L110: =IF(OR(B106=B106),Таблица1[[#This Row],[8]]-SUM(J107:J109)) -> 0 | M110: 2023-04-05T00:16:04.360 | N110: х | O110: х
A111: =(F111<>"")*COUNTA($F$5:F111) -> 0 | G111: =IF(Таблица1[[#This Row],[2]]="","",IF(G111="",IF(Таблица1[[#This Row],[2]]="","",NOW()),G111)) ->  | H111: =SUMIF(Таблица1[2],Таблица1[[#This Row],[2]],H112:H113) -> 0 | J111: =IF(OR(Таблица1[[#This Row],[2]]=Таблица1[[#This Row],[2]]),SUM(F111,-J112:J121),1) -> 0 | L111: =IF(OR(B107=B107),Таблица1[[#This Row],[8]]-SUM(J108:J110)) -> 0 | M111: 2023-04-05T00:16:04.360 | N111: х | O111: х
A112: =(F112<>"")*COUNTA($F$5:F112) -> 0 | G112: =IF(Таблица1[[#This Row],[2]]="","",IF(G112="",IF(Таблица1[[#This Row],[2]]="","",NOW()),G112)) ->  | H112: =SUMIF(Таблица1[2],Таблица1[[#This Row],[2]],H113:H114) -> 0 | J112: =IF(OR(Таблица1[[#This Row],[2]]=Таблица1[[#This Row],[2]]),SUM(F112,-J113:J122),1) -> 0 | L112: =IF(OR(B108=B108),Таблица1[[#This Row],[8]]-SUM(J109:J111)) -> 0 | M112: 2023-04-05T00:16:04.360 | N112: х | O112: х
A113: =(F113<>"")*COUNTA($F$5:F113) -> 0 | G113: =IF(Таблица1[[#This Row],[2]]="","",IF(G113="",IF(Таблица1[[#This Row],[2]]="","",NOW()),G113)) ->  | H113: =SUMIF(Таблица1[2],Таблица1[[#This Row],[2]],H114:H115) -> 0 | J113: =IF(OR(Таблица1[[#This Row],[2]]=Таблица1[[#This Row],[2]]),SUM(F113,-J114:J123),1) -> 0 | L113: =IF(OR(B109=B109),Таблица1[[#This Row],[8]]-SUM(J110:J112)) -> 0 | M113: 2023-04-05T00:16:04.350 | N113: х | O113: х
A114: =(F114<>"")*COUNTA($F$5:F114) -> 0 | G114: =IF(Таблица1[[#This Row],[2]]="","",IF(G114="",IF(Таблица1[[#This Row],[2]]="","",NOW()),G114)) ->  | H114: =SUMIF(Таблица1[2],Таблица1[[#This Row],[2]],H115:H116) -> 0 | J114: =IF(OR(Таблица1[[#This Row],[2]]=Таблица1[[#This Row],[2]]),SUM(F114,-J115:J124),1) -> 0 | L114: =IF(OR(B110=B110),Таблица1[[#This Row],[8]]-SUM(J111:J113)) -> 0 | M114: 2023-04-05T00:16:04.360 | N114: х | O114: х
A115: =(F115<>"")*COUNTA($F$5:F115) -> 0 | G115: =IF(Таблица1[[#This Row],[2]]="","",IF(G115="",IF(Таблица1[[#This Row],[2]]="","",NOW()),G115)) ->  | H115: =SUMIF(Таблица1[2],Таблица1[[#This Row],[2]],H116:H117) -> 0 | J115: =IF(OR(Таблица1[[#This Row],[2]]=Таблица1[[#This Row],[2]]),SUM(F115,-J116:J125),1) -> 0 | L115: =IF(OR(B111=B111),Таблица1[[#This Row],[8]]-SUM(J112:J114)) -> 0 | M115: 2023-04-05T00:16:04.360 | N115: х | O115: х
A116: =(F116<>"")*COUNTA($F$5:F116) -> 0 | G116: =IF(Таблица1[[#This Row],[2]]="","",IF(G116="",IF(Таблица1[[#This Row],[2]]="","",NOW()),G116)) ->  | H116: =SUMIF(Таблица1[2],Таблица1[[#This Row],[2]],H117:H118) -> 0 | J116: =IF(OR(Таблица1[[#This Row],[2]]=Таблица1[[#This Row],[2]]),SUM(F116,-J117:J126),1) -> 0 | L116: =IF(OR(B112=B112),Таблица1[[#This Row],[8]]-SUM(J113:J115)) -> 0 | M116: 2023-04-05T00:16:04.360 | N116: х | O116: х
A117: =(F117<>"")*COUNTA($F$5:F117) -> 0 | G117: =IF(Таблица1[[#This Row],[2]]="","",IF(G117="",IF(Таблица1[[#This Row],[2]]="","",NOW()),G117)) ->  | H117: =SUMIF(Таблица1[2],Таблица1[[#This Row],[2]],H118:H119) -> 0 | J117: =IF(OR(Таблица1[[#This Row],[2]]=Таблица1[[#This Row],[2]]),SUM(F117,-J118:J127),1) -> 0 | L117: =IF(OR(B113=B113),Таблица1[[#This Row],[8]]-SUM(J114:J116)) -> 0 | M117: 2023-04-05T00:16:04.350 | N117: х | O117: х
A118: =(F118<>"")*COUNTA($F$5:F118) -> 0 | G118: =IF(Таблица1[[#This Row],[2]]="","",IF(G118="",IF(Таблица1[[#This Row],[2]]="","",NOW()),G118)) ->  | H118: =SUMIF(Таблица1[2],Таблица1[[#This Row],[2]],H119:H120) -> 0 | J118: =IF(OR(Таблица1[[#This Row],[2]]=Таблица1[[#This Row],[2]]),SUM(F118,-J119:J128),1) -> 0 | L118: =IF(OR(B114=B114),Таблица1[[#This Row],[8]]-SUM(J115:J117)) -> 0 | M118: 2023-04-05T00:16:04.360 | N118: х | O118: х
A119: =(F119<>"")*COUNTA($F$5:F119) -> 0 | G119: =IF(Таблица1[[#This Row],[2]]="","",IF(G119="",IF(Таблица1[[#This Row],[2]]="","",NOW()),G119)) ->  | H119: =SUMIF(Таблица1[2],Таблица1[[#This Row],[2]],H120:H121) -> 0 | J119: =IF(OR(Таблица1[[#This Row],[2]]=Таблица1[[#This Row],[2]]),SUM(F119,-J120:J129),1) -> 0 | L119: =IF(OR(B115=B115),Таблица1[[#This Row],[8]]-SUM(J116:J118)) -> 0 | M119: 2023-04-05T00:16:04.360 | N119: х | O119: х
A120: =(F120<>"")*COUNTA($F$5:F120) -> 0 | G120: =IF(Таблица1[[#This Row],[2]]="","",IF(G120="",IF(Таблица1[[#This Row],[2]]="","",NOW()),G120)) ->  | H120: =SUMIF(Таблица1[2],Таблица1[[#This Row],[2]],H121:H122) -> 0 | J120: =IF(OR(Таблица1[[#This Row],[2]]=Таблица1[[#This Row],[2]]),SUM(F120,-J121:J130),1) -> 0 | L120: =IF(OR(B116=B116),Таблица1[[#This Row],[8]]-SUM(J117:J119)) -> 0 | M120: 2023-04-05T00:16:04.360 | N120: х | O120: х
A121: =(F121<>"")*COUNTA($F$5:F121) -> 0 | G121: =IF(Таблица1[[#This Row],[2]]="","",IF(G121="",IF(Таблица1[[#This Row],[2]]="","",NOW()),G121)) ->  | H121: =SUMIF(Таблица1[2],Таблица1[[#This Row],[2]],H122:H123) -> 0 | J121: =IF(OR(Таблица1[[#This Row],[2]]=Таблица1[[#This Row],[2]]),SUM(F121,-J122:J131),1) -> 0 | L121: =IF(OR(B117=B117),Таблица1[[#This Row],[8]]-SUM(J118:J120)) -> 0 | M121: 2023-04-05T00:16:04.350 | N121: х | O121: х
A122: =(F122<>"")*COUNTA($F$5:F122) -> 0 | G122: =IF(Таблица1[[#This Row],[2]]="","",IF(G122="",IF(Таблица1[[#This Row],[2]]="","",NOW()),G122)) ->  | H122: =SUMIF(Таблица1[2],Таблица1[[#This Row],[2]],H123:H124) -> 0 | J122: =IF(OR(Таблица1[[#This Row],[2]]=Таблица1[[#This Row],[2]]),SUM(F122,-J123:J132),1) -> 0 | L122: =IF(OR(B118=B118),Таблица1[[#This Row],[8]]-SUM(J119:J121)) -> 0 | M122: 2023-04-05T00:16:04.360 | N122: х | O122: х
A123: =(F123<>"")*COUNTA($F$5:F123) -> 0 | G123: =IF(Таблица1[[#This Row],[2]]="","",IF(G123="",IF(Таблица1[[#This Row],[2]]="","",NOW()),G123)) ->  | H123: =SUMIF(Таблица1[2],Таблица1[[#This Row],[2]],H124:H125) -> 0 | J123: =IF(OR(Таблица1[[#This Row],[2]]=Таблица1[[#This Row],[2]]),SUM(F123,-J124:J133),1) -> 0 | L123: =IF(OR(B119=B119),Таблица1[[#This Row],[8]]-SUM(J120:J122)) -> 0 | M123: 2023-04-05T00:16:04.360 | N123: х | O123: х
A124: =(F124<>"")*COUNTA($F$5:F124) -> 0 | G124: =IF(Таблица1[[#This Row],[2]]="","",IF(G124="",IF(Таблица1[[#This Row],[2]]="","",NOW()),G124)) ->  | H124: =SUMIF(Таблица1[2],Таблица1[[#This Row],[2]],H125:H126) -> 0 | J124: =IF(OR(Таблица1[[#This Row],[2]]=Таблица1[[#This Row],[2]]),SUM(F124,-J125:J134),1) -> 0 | L124: =IF(OR(B120=B120),Таблица1[[#This Row],[8]]-SUM(J121:J123)) -> 0 | M124: 2023-04-05T00:16:04.360 | N124: х | O124: х
A125: =(F125<>"")*COUNTA($F$5:F125) -> 0 | G125: =IF(Таблица1[[#This Row],[2]]="","",IF(G125="",IF(Таблица1[[#This Row],[2]]="","",NOW()),G125)) ->  | H125: =SUMIF(Таблица1[2],Таблица1[[#This Row],[2]],H126:H127) -> 0 | J125: =IF(OR(Таблица1[[#This Row],[2]]=Таблица1[[#This Row],[2]]),SUM(F125,-J126:J135),1) -> 0 | L125: =IF(OR(B121=B121),Таблица1[[#This Row],[8]]-SUM(J122:J124)) -> 0 | M125: 2023-04-05T00:16:04.350 | N125: х | O125: х
A126: =(F126<>"")*COUNTA($F$5:F126) -> 0 | G126: =IF(Таблица1[[#This Row],[2]]="","",IF(G126="",IF(Таблица1[[#This Row],[2]]="","",NOW()),G126)) ->  | H126: =SUMIF(Таблица1[2],Таблица1[[#This Row],[2]],H127:H128) -> 0 | J126: =IF(OR(Таблица1[[#This Row],[2]]=Таблица1[[#This Row],[2]]),SUM(F126,-J127:J136),1) -> 0 | L126: =IF(OR(B122=B122),Таблица1[[#This Row],[8]]-SUM(J123:J125)) -> 0 | M126: 2023-04-05T00:16:04.360 | N126: х | O126: х
A127: =(F127<>"")*COUNTA($F$5:F127) -> 0 | G127: =IF(Таблица1[[#This Row],[2]]="","",IF(G127="",IF(Таблица1[[#This Row],[2]]="","",NOW()),G127)) ->  | H127: =SUMIF(Таблица1[2],Таблица1[[#This Row],[2]],H128:H129) -> 0 | J127: =IF(OR(Таблица1[[#This Row],[2]]=Таблица1[[#This Row],[2]]),SUM(F127,-J128:J137),1) -> 0 | L127: =IF(OR(B123=B123),Таблица1[[#This Row],[8]]-SUM(J124:J126)) -> 0 | M127: 2023-04-05T00:16:04.360 | N127: х | O127: х
A128: =(F128<>"")*COUNTA($F$5:F128) -> 0 | G128: =IF(Таблица1[[#This Row],[2]]="","",IF(G128="",IF(Таблица1[[#This Row],[2]]="","",NOW()),G128)) ->  | H128: =SUMIF(Таблица1[2],Таблица1[[#This Row],[2]],H129:H130) -> 0 | J128: =IF(OR(Таблица1[[#This Row],[2]]=Таблица1[[#This Row],[2]]),SUM(F128,-J129:J138),1) -> 0 | L128: =IF(OR(B124=B124),Таблица1[[#This Row],[8]]-SUM(J125:J127)) -> 0 | M128: 2023-04-05T00:16:04.360 | N128: х | O128: х
A129: =(F129<>"")*COUNTA($F$5:F129) -> 0 | G129: =IF(Таблица1[[#This Row],[2]]="","",IF(G129="",IF(Таблица1[[#This Row],[2]]="","",NOW()),G129)) ->  | H129: =SUMIF(Таблица1[2],Таблица1[[#This Row],[2]],H130:H131) -> 0 | J129: =IF(OR(Таблица1[[#This Row],[2]]=Таблица1[[#This Row],[2]]),SUM(F129,-J130:J139),1) -> 0 | L129: =IF(OR(B125=B125),Таблица1[[#This Row],[8]]-SUM(J126:J128)) -> 0 | M129: 2023-04-05T00:16:04.350 | N129: х | O129: х
A130: =(F130<>"")*COUNTA($F$5:F130) -> 0 | G130: =IF(Таблица1[[#This Row],[2]]="","",IF(G130="",IF(Таблица1[[#This Row],[2]]="","",NOW()),G130)) ->  | H130: =SUMIF(Таблица1[2],Таблица1[[#This Row],[2]],H131:H132) -> 0 | J130: =IF(OR(Таблица1[[#This Row],[2]]=Таблица1[[#This Row],[2]]),SUM(F130,-J131:J140),1) -> 0 | L130: =IF(OR(B126=B126),Таблица1[[#This Row],[8]]-SUM(J127:J129)) -> 0 | M130: 2023-04-05T00:16:04.360 | N130: х | O130: х
A131: =(F131<>"")*COUNTA($F$5:F131) -> 0 | G131: =IF(Таблица1[[#This Row],[2]]="","",IF(G131="",IF(Таблица1[[#This Row],[2]]="","",NOW()),G131)) ->  | H131: =SUMIF(Таблица1[2],Таблица1[[#This Row],[2]],H132:H133) -> 0 | J131: =IF(OR(Таблица1[[#This Row],[2]]=Таблица1[[#This Row],[2]]),SUM(F131,-J132:J141),1) -> 0 | L131: =IF(OR(B127=B127),Таблица1[[#This Row],[8]]-SUM(J128:J130)) -> 0 | M131: 2023-04-05T00:16:04.360 | N131: х | O131: х
A132: =(F132<>"")*COUNTA($F$5:F132) -> 0 | G132: =IF(Таблица1[[#This Row],[2]]="","",IF(G132="",IF(Таблица1[[#This Row],[2]]="","",NOW()),G132)) ->  | H132: =SUMIF(Таблица1[2],Таблица1[[#This Row],[2]],H133:H134) -> 0 | J132: =IF(OR(Таблица1[[#This Row],[2]]=Таблица1[[#This Row],[2]]),SUM(F132,-J133:J142),1) -> 0 | L132: =IF(OR(B128=B128),Таблица1[[#This Row],[8]]-SUM(J129:J131)) -> 0 | M132: 2023-04-05T00:16:04.360 | N132: х | O132: х
A133: =(F133<>"")*COUNTA($F$5:F133) -> 0 | G133: =IF(Таблица1[[#This Row],[2]]="","",IF(G133="",IF(Таблица1[[#This Row],[2]]="","",NOW()),G133)) ->  | H133: =SUMIF(Таблица1[2],Таблица1[[#This Row],[2]],H134:H135) -> 0 | J133: =IF(OR(Таблица1[[#This Row],[2]]=Таблица1[[#This Row],[2]]),SUM(F133,-J134:J143),1) -> 0 | L133: =IF(OR(B129=B129),Таблица1[[#This Row],[8]]-SUM(J130:J132)) -> 0 | M133: 2023-04-05T00:16:04.350 | N133: х | O133: х
A134: =(F134<>"")*COUNTA($F$5:F134) -> 0 | G134: =IF(Таблица1[[#This Row],[2]]="","",IF(G134="",IF(Таблица1[[#This Row],[2]]="","",NOW()),G134)) ->  | H134: =SUMIF(Таблица1[2],Таблица1[[#This Row],[2]],H135:H136) -> 0 | J134: =IF(OR(Таблица1[[#This Row],[2]]=Таблица1[[#This Row],[2]]),SUM(F134,-J135:J144),1) -> 0 | L134: =IF(OR(B130=B130),Таблица1[[#This Row],[8]]-SUM(J131:J133)) -> 0 | M134: 2023-04-05T00:16:04.360 | N134: х | O134: х
A135: =(F135<>"")*COUNTA($F$5:F135) -> 0 | G135: =IF(Таблица1[[#This Row],[2]]="","",IF(G135="",IF(Таблица1[[#This Row],[2]]="","",NOW()),G135)) ->  | H135: =SUMIF(Таблица1[2],Таблица1[[#This Row],[2]],H136:H137) -> 0 | J135: =IF(OR(Таблица1[[#This Row],[2]]=Таблица1[[#This Row],[2]]),SUM(F135,-J136:J145),1) -> 0 | L135: =IF(OR(B131=B131),Таблица1[[#This Row],[8]]-SUM(J132:J134)) -> 0 | M135: 2023-04-05T00:16:04.360 | N135: х | O135: х
A136: =(F136<>"")*COUNTA($F$5:F136) -> 0 | G136: =IF(Таблица1[[#This Row],[2]]="","",IF(G136="",IF(Таблица1[[#This Row],[2]]="","",NOW()),G136)) ->  | H136: =SUMIF(Таблица1[2],Таблица1[[#This Row],[2]],H137:H138) -> 0 | J136: =IF(OR(Таблица1[[#This Row],[2]]=Таблица1[[#This Row],[2]]),SUM(F136,-J137:J146),1) -> 0 | L136: =IF(OR(B132=B132),Таблица1[[#This Row],[8]]-SUM(J133:J135)) -> 0 | M136: 2023-04-05T00:16:04.360 | N136: х | O136: х
A137: =(F137<>"")*COUNTA($F$5:F137) -> 0 | G137: =IF(Таблица1[[#This Row],[2]]="","",IF(G137="",IF(Таблица1[[#This Row],[2]]="","",NOW()),G137)) ->  | H137: =SUMIF(Таблица1[2],Таблица1[[#This Row],[2]],H138:H139) -> 0 | J137: =IF(OR(Таблица1[[#This Row],[2]]=Таблица1[[#This Row],[2]]),SUM(F137,-J138:J147),1) -> 0 | L137: =IF(OR(B133=B133),Таблица1[[#This Row],[8]]-SUM(J134:J136)) -> 0 | M137: 2023-04-05T00:16:04.350 | N137: х | O137: х
A138: =(F138<>"")*COUNTA($F$5:F138) -> 0 | G138: =IF(Таблица1[[#This Row],[2]]="","",IF(G138="",IF(Таблица1[[#This Row],[2]]="","",NOW()),G138)) ->  | H138: =SUMIF(Таблица1[2],Таблица1[[#This Row],[2]],H139:H140) -> 0 | J138: =IF(OR(Таблица1[[#This Row],[2]]=Таблица1[[#This Row],[2]]),SUM(F138,-J139:J148),1) -> 0 | L138: =IF(OR(B134=B134),Таблица1[[#This Row],[8]]-SUM(J135:J137)) -> 0 | M138: 2023-04-05T00:16:04.360 | N138: х | O138: х
A139: =(F139<>"")*COUNTA($F$5:F139) -> 0 | G139: =IF(Таблица1[[#This Row],[2]]="","",IF(G139="",IF(Таблица1[[#This Row],[2]]="","",NOW()),G139)) ->  | H139: =SUMIF(Таблица1[2],Таблица1[[#This Row],[2]],H140:H141) -> 0 | J139: =IF(OR(Таблица1[[#This Row],[2]]=Таблица1[[#This Row],[2]]),SUM(F139,-J140:J149),1) -> 0 | L139: =IF(OR(B135=B135),Таблица1[[#This Row],[8]]-SUM(J136:J138)) -> 0 | M139: 2023-04-05T00:16:04.360 | N139: х | O139: х
A140: =(F140<>"")*COUNTA($F$5:F140) -> 0 | G140: =IF(Таблица1[[#This Row],[2]]="","",IF(G140="",IF(Таблица1[[#This Row],[2]]="","",NOW()),G140)) ->  | H140: =SUMIF(Таблица1[2],Таблица1[[#This Row],[2]],H141:H142) -> 0 | J140: =IF(OR(Таблица1[[#This Row],[2]]=Таблица1[[#This Row],[2]]),SUM(F140,-J141:J150),1) -> 0 | L140: =IF(OR(B136=B136),Таблица1[[#This Row],[8]]-SUM(J137:J139)) -> 0 | M140: 2023-04-05T00:16:04.360 | N140: х | O140: х
A141: =(F141<>"")*COUNTA($F$5:F141) -> 0 | G141: =IF(Таблица1[[#This Row],[2]]="","",IF(G141="",IF(Таблица1[[#This Row],[2]]="","",NOW()),G141)) ->  | H141: =SUMIF(Таблица1[2],Таблица1[[#This Row],[2]],H142:H143) -> 0 | J141: =IF(OR(Таблица1[[#This Row],[2]]=Таблица1[[#This Row],[2]]),SUM(F141,-J142:J151),1) -> 0 | L141: =IF(OR(B137=B137),Таблица1[[#This Row],[8]]-SUM(J138:J140)) -> 0 | M141: 2023-04-05T00:16:04.350 | N141: х | O141: х
A142: =(F142<>"")*COUNTA($F$5:F142) -> 0 | G142: =IF(Таблица1[[#This Row],[2]]="","",IF(G142="",IF(Таблица1[[#This Row],[2]]="","",NOW()),G142)) ->  | H142: =SUMIF(Таблица1[2],Таблица1[[#This Row],[2]],H143:H144) -> 0 | J142: =IF(OR(Таблица1[[#This Row],[2]]=Таблица1[[#This Row],[2]]),SUM(F142,-J143:J152),1) -> 0 | L142: =IF(OR(B138=B138),Таблица1[[#This Row],[8]]-SUM(J139:J141)) -> 0 | M142: 2023-04-05T00:16:04.360 | N142: х | O142: х
A143: =(F143<>"")*COUNTA($F$5:F143) -> 0 | G143: =IF(Таблица1[[#This Row],[2]]="","",IF(G143="",IF(Таблица1[[#This Row],[2]]="","",NOW()),G143)) ->  | H143: =SUMIF(Таблица1[2],Таблица1[[#This Row],[2]],H144:H145) -> 0 | J143: =IF(OR(Таблица1[[#This Row],[2]]=Таблица1[[#This Row],[2]]),SUM(F143,-J144:J153),1) -> 0 | L143: =IF(OR(B139=B139),Таблица1[[#This Row],[8]]-SUM(J140:J142)) -> 0 | M143: 2023-04-05T00:16:04.360 | N143: х | O143: х
A144: =(F144<>"")*COUNTA($F$5:F144) -> 0 | G144: =IF(Таблица1[[#This Row],[2]]="","",IF(G144="",IF(Таблица1[[#This Row],[2]]="","",NOW()),G144)) ->  | H144: =SUMIF(Таблица1[2],Таблица1[[#This Row],[2]],H145:H146) -> 0 | J144: =IF(OR(Таблица1[[#This Row],[2]]=Таблица1[[#This Row],[2]]),SUM(F144,-J145:J154),1) -> 0 | L144: =IF(OR(B140=B140),Таблица1[[#This Row],[8]]-SUM(J141:J143)) -> 0 | M144: 2023-04-05T00:16:04.360 | N144: х | O144: х
A145: =(F145<>"")*COUNTA($F$5:F145) -> 0 | G145: =IF(Таблица1[[#This Row],[2]]="","",IF(G145="",IF(Таблица1[[#This Row],[2]]="","",NOW()),G145)) ->  | H145: =SUMIF(Таблица1[2],Таблица1[[#This Row],[2]],H146:H147) -> 0 | J145: =IF(OR(Таблица1[[#This Row],[2]]=Таблица1[[#This Row],[2]]),SUM(F145,-J146:J155),1) -> 0 | L145: =IF(OR(B141=B141),Таблица1[[#This Row],[8]]-SUM(J142:J144)) -> 0 | M145: 2023-04-05T00:16:04.350 | N145: х | O145: х
A146: =(F146<>"")*COUNTA($F$5:F146) -> 0 | G146: =IF(Таблица1[[#This Row],[2]]="","",IF(G146="",IF(Таблица1[[#This Row],[2]]="","",NOW()),G146)) ->  | H146: =SUMIF(Таблица1[2],Таблица1[[#This Row],[2]],H147:H148) -> 0 | J146: =IF(OR(Таблица1[[#This Row],[2]]=Таблица1[[#This Row],[2]]),SUM(F146,-J147:J156),1) -> 0 | L146: =IF(OR(B142=B142),Таблица1[[#This Row],[8]]-SUM(J143:J145)) -> 0 | M146: 2023-04-05T00:16:04.360 | N146: х | O146: х
A147: =(F147<>"")*COUNTA($F$5:F147) -> 0 | G147: =IF(Таблица1[[#This Row],[2]]="","",IF(G147="",IF(Таблица1[[#This Row],[2]]="","",NOW()),G147)) ->  | H147: =SUMIF(Таблица1[2],Таблица1[[#This Row],[2]],H148:H149) -> 0 | J147: =IF(OR(Таблица1[[#This Row],[2]]=Таблица1[[#This Row],[2]]),SUM(F147,-J148:J157),1) -> 0 | L147: =IF(OR(B143=B143),Таблица1[[#This Row],[8]]-SUM(J144:J146)) -> 0 | M147: =NOW() -> 2023-04-05T00:16:04.360 | N147: =IF((C147=""),"х","") -> х | O147: =IF(C147=0,IF(L147<=0,"х",0),0) -> х
A148: =(F148<>"")*COUNTA($F$5:F148) -> 0 | G148: =IF(Таблица1[[#This Row],[2]]="","",IF(G148="",IF(Таблица1[[#This Row],[2]]="","",NOW()),G148)) ->  | H148: =SUMIF(Таблица1[2],Таблица1[[#This Row],[2]],H149:H150) -> 0 | J148: =IF(OR(Таблица1[[#This Row],[2]]=Таблица1[[#This Row],[2]]),SUM(F148,-J149:J158),1) -> 0 | L148: =IF(OR(B144=B144),Таблица1[[#This Row],[8]]-SUM(J145:J147)) -> 0 | M148: 2023-04-05T00:16:04.360 | N148: х | O148: х
A149: =(F149<>"")*COUNTA($F$5:F149) -> 0 | G149: =IF(Таблица1[[#This Row],[2]]="","",IF(G149="",IF(Таблица1[[#This Row],[2]]="","",NOW()),G149)) ->  | H149: =SUMIF(Таблица1[2],Таблица1[[#This Row],[2]],H150:H151) -> 0 | J149: =IF(OR(Таблица1[[#This Row],[2]]=Таблица1[[#This Row],[2]]),SUM(F149,-J150:J159),1) -> 0 | L149: =IF(OR(B145=B145),Таблица1[[#This Row],[8]]-SUM(J146:J148)) -> 0 | M149: 2023-04-05T00:16:04.350 | N149: х | O149: х
A150: =(F150<>"")*COUNTA($F$5:F150) -> 0 | G150: =IF(Таблица1[[#This Row],[2]]="","",IF(G150="",IF(Таблица1[[#This Row],[2]]="","",NOW()),G150)) ->  | H150: =SUMIF(Таблица1[2],Таблица1[[#This Row],[2]],H151:H152) -> 0 | J150: =IF(OR(Таблица1[[#This Row],[2]]=Таблица1[[#This Row],[2]]),SUM(F150,-J151:J160),1) -> 0 | L150: =IF(OR(B146=B146),Таблица1[[#This Row],[8]]-SUM(J147:J149)) -> 0 | M150: 2023-04-05T00:16:04.360 | N150: х | O150: х
A151: =(F151<>"")*COUNTA($F$5:F151) -> 0 | G151: =IF(Таблица1[[#This Row],[2]]="","",IF(G151="",IF(Таблица1[[#This Row],[2]]="","",NOW()),G151)) ->  | H151: =SUMIF(Таблица1[2],Таблица1[[#This Row],[2]],H152:H153) -> 0 | J151: =IF(OR(Таблица1[[#This Row],[2]]=Таблица1[[#This Row],[2]]),SUM(F151,-J152:J161),1) -> 0 | L151: =IF(OR(B147=B147),Таблица1[[#This Row],[8]]-SUM(J148:J150)) -> 0 | M151: 2023-04-05T00:16:04.360 | N151: х | O151: х
A152: =(F152<>"")*COUNTA($F$5:F152) -> 0 | G152: =IF(Таблица1[[#This Row],[2]]="","",IF(G152="",IF(Таблица1[[#This Row],[2]]="","",NOW()),G152)) ->  | H152: =SUMIF(Таблица1[2],Таблица1[[#This Row],[2]],H153:H154) -> 0 | J152: =IF(OR(Таблица1[[#This Row],[2]]=Таблица1[[#This Row],[2]]),SUM(F152,-J153:J162),1) -> 0 | L152: =IF(OR(B148=B148),Таблица1[[#This Row],[8]]-SUM(J149:J151)) -> 0 | M152: 2023-04-05T00:16:04.360 | N152: х | O152: х
A153: =(F153<>"")*COUNTA($F$5:F153) -> 0 | G153: =IF(Таблица1[[#This Row],[2]]="","",IF(G153="",IF(Таблица1[[#This Row],[2]]="","",NOW()),G153)) ->  | H153: =SUMIF(Таблица1[2],Таблица1[[#This Row],[2]],H154:H155) -> 0 | J153: =IF(OR(Таблица1[[#This Row],[2]]=Таблица1[[#This Row],[2]]),SUM(F153,-J154:J163),1) -> 0 | L153: =IF(OR(B149=B149),Таблица1[[#This Row],[8]]-SUM(J150:J152)) -> 0 | M153: 2023-04-05T00:16:04.350 | N153: х | O153: х
A154: =(F154<>"")*COUNTA($F$5:F154) -> 0 | G154: =IF(Таблица1[[#This Row],[2]]="","",IF(G154="",IF(Таблица1[[#This Row],[2]]="","",NOW()),G154)) ->  | H154: =SUMIF(Таблица1[2],Таблица1[[#This Row],[2]],H155:H156) -> 0 | J154: =IF(OR(Таблица1[[#This Row],[2]]=Таблица1[[#This Row],[2]]),SUM(F154,-J155:J164),1) -> 0 | L154: =IF(OR(B150=B150),Таблица1[[#This Row],[8]]-SUM(J151:J153)) -> 0 | M154: 2023-04-05T00:16:04.360 | N154: х | O154: х
A155: =(F155<>"")*COUNTA($F$5:F155) -> 0 | G155: =IF(Таблица1[[#This Row],[2]]="","",IF(G155="",IF(Таблица1[[#This Row],[2]]="","",NOW()),G155)) ->  | H155: =SUMIF(Таблица1[2],Таблица1[[#This Row],[2]],H156:H157) -> 0 | J155: =IF(OR(Таблица1[[#This Row],[2]]=Таблица1[[#This Row],[2]]),SUM(F155,-J156:J165),1) -> 0 | L155: =IF(OR(B151=B151),Таблица1[[#This Row],[8]]-SUM(J152:J154)) -> 0 | M155: 2023-04-05T00:16:04.360 | N155: х | O155: х
A156: =(F156<>"")*COUNTA($F$5:F156) -> 0 | G156: =IF(Таблица1[[#This Row],[2]]="","",IF(G156="",IF(Таблица1[[#This Row],[2]]="","",NOW()),G156)) ->  | H156: =SUMIF(Таблица1[2],Таблица1[[#This Row],[2]],H157:H158) -> 0 | J156: =IF(OR(Таблица1[[#This Row],[2]]=Таблица1[[#This Row],[2]]),SUM(F156,-J157:J166),1) -> 0 | L156: =IF(OR(B152=B152),Таблица1[[#This Row],[8]]-SUM(J153:J155)) -> 0 | M156: 2023-04-05T00:16:04.360 | N156: х | O156: х
A157: =(F157<>"")*COUNTA($F$5:F157) -> 0 | G157: =IF(Таблица1[[#This Row],[2]]="","",IF(G157="",IF(Таблица1[[#This Row],[2]]="","",NOW()),G157)) ->  | H157: =SUMIF(Таблица1[2],Таблица1[[#This Row],[2]],H158:H159) -> 0 | J157: =IF(OR(Таблица1[[#This Row],[2]]=Таблица1[[#This Row],[2]]),SUM(F157,-J158:J167),1) -> 0 | L157: =IF(OR(B153=B153),Таблица1[[#This Row],[8]]-SUM(J154:J156)) -> 0 | M157: 2023-04-05T00:16:04.350 | N157: х | O157: х
A158: =(F158<>"")*COUNTA($F$5:F158) -> 0 | G158: =IF(Таблица1[[#This Row],[2]]="","",IF(G158="",IF(Таблица1[[#This Row],[2]]="","",NOW()),G158)) ->  | H158: =SUMIF(Таблица1[2],Таблица1[[#This Row],[2]],H159:H160) -> 0 | J158: =IF(OR(Таблица1[[#This Row],[2]]=Таблица1[[#This Row],[2]]),SUM(F158,-J159:J168),1) -> 0 | L158: =IF(OR(B154=B154),Таблица1[[#This Row],[8]]-SUM(J155:J157)) -> 0 | M158: 2023-04-05T00:16:04.360 | N158: х | O158: х
A159: =(F159<>"")*COUNTA($F$5:F159) -> 0 | G159: =IF(Таблица1[[#This Row],[2]]="","",IF(G159="",IF(Таблица1[[#This Row],[2]]="","",NOW()),G159)) ->  | H159: =SUMIF(Таблица1[2],Таблица1[[#This Row],[2]],H160:H161) -> 0 | J159: =IF(OR(Таблица1[[#This Row],[2]]=Таблица1[[#This Row],[2]]),SUM(F159,-J160:J169),1) -> 0 | L159: =IF(OR(B155=B155),Таблица1[[#This Row],[8]]-SUM(J156:J158)) -> 0 | M159: 2023-04-05T00:16:04.360 | N159: х | O159: х
A160: =(F160<>"")*COUNTA($F$5:F160) -> 0 | G160: =IF(Таблица1[[#This Row],[2]]="","",IF(G160="",IF(Таблица1[[#This Row],[2]]="","",NOW()),G160)) ->  | H160: =SUMIF(Таблица1[2],Таблица1[[#This Row],[2]],H161:H162) -> 0 | J160: =IF(OR(Таблица1[[#This Row],[2]]=Таблица1[[#This Row],[2]]),SUM(F160,-J161:J170),1) -> 0 | L160: =IF(OR(B156=B156),Таблица1[[#This Row],[8]]-SUM(J157:J159)) -> 0 | M160: 2023-04-05T00:16:04.360 | N160: х | O160: х
A161: =(F161<>"")*COUNTA($F$5:F161) -> 0 | G161: =IF(Таблица1[[#This Row],[2]]="","",IF(G161="",IF(Таблица1[[#This Row],[2]]="","",NOW()),G161)) ->  | H161: =SUMIF(Таблица1[2],Таблица1[[#This Row],[2]],H162:H163) -> 0 | J161: =IF(OR(Таблица1[[#This Row],[2]]=Таблица1[[#This Row],[2]]),SUM(F161,-J162:J171),1) -> 0 | L161: =IF(OR(B157=B157),Таблица1[[#This Row],[8]]-SUM(J158:J160)) -> 0 | M161: 2023-04-05T00:16:04.350 | N161: х | O161: х
A162: =(F162<>"")*COUNTA($F$5:F162) -> 0 | G162: =IF(Таблица1[[#This Row],[2]]="","",IF(G162="",IF(Таблица1[[#This Row],[2]]="","",NOW()),G162)) ->  | H162: =SUMIF(Таблица1[2],Таблица1[[#This Row],[2]],H163:H164) -> 0 | J162: =IF(OR(Таблица1[[#This Row],[2]]=Таблица1[[#This Row],[2]]),SUM(F162,-J163:J172),1) -> 0 | L162: =IF(OR(B158=B158),Таблица1[[#This Row],[8]]-SUM(J159:J161)) -> 0 | M162: 2023-04-05T00:16:04.360 | N162: х | O162: х
A163: =(F163<>"")*COUNTA($F$5:F163) -> 0 | G163: =IF(Таблица1[[#This Row],[2]]="","",IF(G163="",IF(Таблица1[[#This Row],[2]]="","",NOW()),G163)) ->  | H163: =SUMIF(Таблица1[2],Таблица1[[#This Row],[2]],H164:H165) -> 0 | J163: =IF(OR(Таблица1[[#This Row],[2]]=Таблица1[[#This Row],[2]]),SUM(F163,-J164:J173),1) -> 0 | L163: =IF(OR(B159=B159),Таблица1[[#This Row],[8]]-SUM(J160:J162)) -> 0 | M163: 2023-04-05T00:16:04.360 | N163: х | O163: х
A164: =(F164<>"")*COUNTA($F$5:F164) -> 0 | G164: =IF(Таблица1[[#This Row],[2]]="","",IF(G164="",IF(Таблица1[[#This Row],[2]]="","",NOW()),G164)) ->  | H164: =SUMIF(Таблица1[2],Таблица1[[#This Row],[2]],H165:H166) -> 0 | J164: =IF(OR(Таблица1[[#This Row],[2]]=Таблица1[[#This Row],[2]]),SUM(F164,-J165:J174),1) -> 0 | L164: =IF(OR(B160=B160),Таблица1[[#This Row],[8]]-SUM(J161:J163)) -> 0 | M164: 2023-04-05T00:16:04.360 | N164: х | O164: х
A165: =(F165<>"")*COUNTA($F$5:F165) -> 0 | G165: =IF(Таблица1[[#This Row],[2]]="","",IF(G165="",IF(Таблица1[[#This Row],[2]]="","",NOW()),G165)) ->  | H165: =SUMIF(Таблица1[2],Таблица1[[#This Row],[2]],H166:H167) -> 0 | J165: =IF(OR(Таблица1[[#This Row],[2]]=Таблица1[[#This Row],[2]]),SUM(F165,-J166:J175),1) -> 0 | L165: =IF(OR(B161=B161),Таблица1[[#This Row],[8]]-SUM(J162:J164)) -> 0 | M165: 2023-04-05T00:16:04.350 | N165: х | O165: х
A166: =(F166<>"")*COUNTA($F$5:F166) -> 0 | G166: =IF(Таблица1[[#This Row],[2]]="","",IF(G166="",IF(Таблица1[[#This Row],[2]]="","",NOW()),G166)) ->  | H166: =SUMIF(Таблица1[2],Таблица1[[#This Row],[2]],H167:H168) -> 0 | J166: =IF(OR(Таблица1[[#This Row],[2]]=Таблица1[[#This Row],[2]]),SUM(F166,-J167:J176),1) -> 0 | L166: =IF(OR(B162=B162),Таблица1[[#This Row],[8]]-SUM(J163:J165)) -> 0 | M166: 2023-04-05T00:16:04.360 | N166: х | O166: х
A167: =(F167<>"")*COUNTA($F$5:F167) -> 0 | G167: =IF(Таблица1[[#This Row],[2]]="","",IF(G167="",IF(Таблица1[[#This Row],[2]]="","",NOW()),G167)) ->  | H167: =SUMIF(Таблица1[2],Таблица1[[#This Row],[2]],H168:H169) -> 0 | J167: =IF(OR(Таблица1[[#This Row],[2]]=Таблица1[[#This Row],[2]]),SUM(F167,-J168:J177),1) -> 0 | L167: =IF(OR(B163=B163),Таблица1[[#This Row],[8]]-SUM(J164:J166)) -> 0 | M167: 2023-04-05T00:16:04.360 | N167: х | O167: х
A168: =(F168<>"")*COUNTA($F$5:F168) -> 0 | G168: =IF(Таблица1[[#This Row],[2]]="","",IF(G168="",IF(Таблица1[[#This Row],[2]]="","",NOW()),G168)) ->  | H168: =SUMIF(Таблица1[2],Таблица1[[#This Row],[2]],H169:H170) -> 0 | J168: =IF(OR(Таблица1[[#This Row],[2]]=Таблица1[[#This Row],[2]]),SUM(F168,-J169:J178),1) -> 0 | L168: =IF(OR(B164=B164),Таблица1[[#This Row],[8]]-SUM(J165:J167)) -> 0 | M168: 2023-04-05T00:16:04.360 | N168: х | O168: х
A169: =(F169<>"")*COUNTA($F$5:F169) -> 0 | G169: =IF(Таблица1[[#This Row],[2]]="","",IF(G169="",IF(Таблица1[[#This Row],[2]]="","",NOW()),G169)) ->  | H169: =SUMIF(Таблица1[2],Таблица1[[#This Row],[2]],H170:H171) -> 0 | J169: =IF(OR(Таблица1[[#This Row],[2]]=Таблица1[[#This Row],[2]]),SUM(F169,-J170:J179),1) -> 0 | L169: =IF(OR(B165=B165),Таблица1[[#This Row],[8]]-SUM(J166:J168)) -> 0 | M169: 2023-04-05T00:16:04.350 | N169: х | O169: х
A170: =(F170<>"")*COUNTA($F$5:F170) -> 0 | G170: =IF(Таблица1[[#This Row],[2]]="","",IF(G170="",IF(Таблица1[[#This Row],[2]]="","",NOW()),G170)) ->  | H170: =SUMIF(Таблица1[2],Таблица1[[#This Row],[2]],H171:H172) -> 0 | J170: =IF(OR(Таблица1[[#This Row],[2]]=Таблица1[[#This Row],[2]]),SUM(F170,-J171:J180),1) -> 0 | L170: =IF(OR(B166=B166),Таблица1[[#This Row],[8]]-SUM(J167:J169)) -> 0 | M170: 2023-04-05T00:16:04.360 | N170: х | O170: х
A171: =(F171<>"")*COUNTA($F$5:F171) -> 0 | G171: =IF(Таблица1[[#This Row],[2]]="","",IF(G171="",IF(Таблица1[[#This Row],[2]]="","",NOW()),G171)) ->  | H171: =SUMIF(Таблица1[2],Таблица1[[#This Row],[2]],H172:H173) -> 0 | J171: =IF(OR(Таблица1[[#This Row],[2]]=Таблица1[[#This Row],[2]]),SUM(F171,-J172:J181),1) -> 0 | L171: =IF(OR(B167=B167),Таблица1[[#This Row],[8]]-SUM(J168:J170)) -> 0 | M171: 2023-04-05T00:16:04.360 | N171: х | O171: х
A172: =(F172<>"")*COUNTA($F$5:F172) -> 0 | G172: =IF(Таблица1[[#This Row],[2]]="","",IF(G172="",IF(Таблица1[[#This Row],[2]]="","",NOW()),G172)) ->  | H172: =SUMIF(Таблица1[2],Таблица1[[#This Row],[2]],H173:H174) -> 0 | J172: =IF(OR(Таблица1[[#This Row],[2]]=Таблица1[[#This Row],[2]]),SUM(F172,-J173:J182),1) -> 0 | L172: =IF(OR(B168=B168),Таблица1[[#This Row],[8]]-SUM(J169:J171)) -> 0 | M172: 2023-04-05T00:16:04.360 | N172: х | O172: х
A173: =(F173<>"")*COUNTA($F$5:F173) -> 0 | G173: =IF(Таблица1[[#This Row],[2]]="","",IF(G173="",IF(Таблица1[[#This Row],[2]]="","",NOW()),G173)) ->  | H173: =SUMIF(Таблица1[2],Таблица1[[#This Row],[2]],H174:H175) -> 0 | J173: =IF(OR(Таблица1[[#This Row],[2]]=Таблица1[[#This Row],[2]]),SUM(F173,-J174:J183),1) -> 0 | L173: =IF(OR(B169=B169),Таблица1[[#This Row],[8]]-SUM(J170:J172)) -> 0 | M173: 2023-04-05T00:16:04.350 | N173: х | O173: х
A174: =(F174<>"")*COUNTA($F$5:F174) -> 0 | G174: =IF(Таблица1[[#This Row],[2]]="","",IF(G174="",IF(Таблица1[[#This Row],[2]]="","",NOW()),G174)) ->  | H174: =SUMIF(Таблица1[2],Таблица1[[#This Row],[2]],H175:H176) -> 0 | J174: =IF(OR(Таблица1[[#This Row],[2]]=Таблица1[[#This Row],[2]]),SUM(F174,-J175:J184),1) -> 0 | L174: =IF(OR(B170=B170),Таблица1[[#This Row],[8]]-SUM(J171:J173)) -> 0 | M174: 2023-04-05T00:16:04.360 | N174: х | O174: х
A175: =(F175<>"")*COUNTA($F$5:F175) -> 0 | G175: =IF(Таблица1[[#This Row],[2]]="","",IF(G175="",IF(Таблица1[[#This Row],[2]]="","",NOW()),G175)) ->  | H175: =SUMIF(Таблица1[2],Таблица1[[#This Row],[2]],H176:H177) -> 0 | J175: =IF(OR(Таблица1[[#This Row],[2]]=Таблица1[[#This Row],[2]]),SUM(F175,-J176:J185),1) -> 0 | L175: =IF(OR(B171=B171),Таблица1[[#This Row],[8]]-SUM(J172:J174)) -> 0 | M175: 2023-04-05T00:16:04.360 | N175: х | O175: х
A176: =(F176<>"")*COUNTA($F$5:F176) -> 0 | G176: =IF(Таблица1[[#This Row],[2]]="","",IF(G176="",IF(Таблица1[[#This Row],[2]]="","",NOW()),G176)) ->  | H176: =SUMIF(Таблица1[2],Таблица1[[#This Row],[2]],H177:H178) -> 0 | J176: =IF(OR(Таблица1[[#This Row],[2]]=Таблица1[[#This Row],[2]]),SUM(F176,-J177:J186),1) -> 0 | L176: =IF(OR(B172=B172),Таблица1[[#This Row],[8]]-SUM(J173:J175)) -> 0 | M176: 2023-04-05T00:16:04.360 | N176: х | O176: х
A177: =(F177<>"")*COUNTA($F$5:F177) -> 0 | G177: =IF(Таблица1[[#This Row],[2]]="","",IF(G177="",IF(Таблица1[[#This Row],[2]]="","",NOW()),G177)) ->  | H177: =SUMIF(Таблица1[2],Таблица1[[#This Row],[2]],H178:H179) -> 0 | J177: =IF(OR(Таблица1[[#This Row],[2]]=Таблица1[[#This Row],[2]]),SUM(F177,-J178:J187),1) -> 0 | L177: =IF(OR(B173=B173),Таблица1[[#This Row],[8]]-SUM(J174:J176)) -> 0 | M177: 2023-04-05T00:16:04.350 | N177: х | O177: х
A178: =(F178<>"")*COUNTA($F$5:F178) -> 0 | G178: =IF(Таблица1[[#This Row],[2]]="","",IF(G178="",IF(Таблица1[[#This Row],[2]]="","",NOW()),G178)) ->  | H178: =SUMIF(Таблица1[2],Таблица1[[#This Row],[2]],H179:H180) -> 0 | J178: =IF(OR(Таблица1[[#This Row],[2]]=Таблица1[[#This Row],[2]]),SUM(F178,-J179:J188),1) -> 0 | L178: =IF(OR(B174=B174),Таблица1[[#This Row],[8]]-SUM(J175:J177)) -> 0 | M178: 2023-04-05T00:16:04.360 | N178: х | O178: х
A179: =(F179<>"")*COUNTA($F$5:F179) -> 0 | G179: =IF(Таблица1[[#This Row],[2]]="","",IF(G179="",IF(Таблица1[[#This Row],[2]]="","",NOW()),G179)) ->  | H179: =SUMIF(Таблица1[2],Таблица1[[#This Row],[2]],H180:H181) -> 0 | J179: =IF(OR(Таблица1[[#This Row],[2]]=Таблица1[[#This Row],[2]]),SUM(F179,-J180:J189),1) -> 0 | L179: =IF(OR(B175=B175),Таблица1[[#This Row],[8]]-SUM(J176:J178)) -> 0 | M179: 2023-04-05T00:16:04.360 | N179: х | O179: х
A180: =(F180<>"")*COUNTA($F$5:F180) -> 0 | G180: =IF(Таблица1[[#This Row],[2]]="","",IF(G180="",IF(Таблица1[[#This Row],[2]]="","",NOW()),G180)) ->  | H180: =SUMIF(Таблица1[2],Таблица1[[#This Row],[2]],H181:H182) -> 0 | J180: =IF(OR(Таблица1[[#This Row],[2]]=Таблица1[[#This Row],[2]]),SUM(F180,-J181:J190),1) -> 0 | L180: =IF(OR(B176=B176),Таблица1[[#This Row],[8]]-SUM(J177:J179)) -> 0 | M180: 2023-04-05T00:16:04.360 | N180: х | O180: х
A181: =(F181<>"")*COUNTA($F$5:F181) -> 0 | G181: =IF(Таблица1[[#This Row],[2]]="","",IF(G181="",IF(Таблица1[[#This Row],[2]]="","",NOW()),G181)) ->  | H181: =SUMIF(Таблица1[2],Таблица1[[#This Row],[2]],H182:H183) -> 0 | J181: =IF(OR(Таблица1[[#This Row],[2]]=Таблица1[[#This Row],[2]]),SUM(F181,-J182:J191),1) -> 0 | L181: =IF(OR(B177=B177),Таблица1[[#This Row],[8]]-SUM(J178:J180)) -> 0 | M181: 2023-04-05T00:16:04.350 | N181: х | O181: х
A182: =(F182<>"")*COUNTA($F$5:F182) -> 0 | G182: =IF(Таблица1[[#This Row],[2]]="","",IF(G182="",IF(Таблица1[[#This Row],[2]]="","",NOW()),G182)) ->  | H182: =SUMIF(Таблица1[2],Таблица1[[#This Row],[2]],H183:H184) -> 0 | J182: =IF(OR(Таблица1[[#This Row],[2]]=Таблица1[[#This Row],[2]]),SUM(F182,-J183:J192),1) -> 0 | L182: =IF(OR(B178=B178),Таблица1[[#This Row],[8]]-SUM(J179:J181)) -> 0 | M182: 2023-04-05T00:16:04.360 | N182: х | O182: х
A183: =(F183<>"")*COUNTA($F$5:F183) -> 0 | G183: =IF(Таблица1[[#This Row],[2]]="","",IF(G183="",IF(Таблица1[[#This Row],[2]]="","",NOW()),G183)) ->  | H183: =SUMIF(Таблица1[2],Таблица1[[#This Row],[2]],H184:H185) -> 0 | J183: =IF(OR(Таблица1[[#This Row],[2]]=Таблица1[[#This Row],[2]]),SUM(F183,-J184:J193),1) -> 0 | L183: =IF(OR(B179=B179),Таблица1[[#This Row],[8]]-SUM(J180:J182)) -> 0 | M183: 2023-04-05T00:16:04.360 | N183: х | O183: х
A184: =(F184<>"")*COUNTA($F$5:F184) -> 0 | G184: =IF(Таблица1[[#This Row],[2]]="","",IF(G184="",IF(Таблица1[[#This Row],[2]]="","",NOW()),G184)) ->  | H184: =SUMIF(Таблица1[2],Таблица1[[#This Row],[2]],H185:H186) -> 0 | J184: =IF(OR(Таблица1[[#This Row],[2]]=Таблица1[[#This Row],[2]]),SUM(F184,-J185:J194),1) -> 0 | L184: =IF(OR(B180=B180),Таблица1[[#This Row],[8]]-SUM(J181:J183)) -> 0 | M184: 2023-04-05T00:16:04.360 | N184: х | O184: х
A185: =(F185<>"")*COUNTA($F$5:F185) -> 0 | G185: =IF(Таблица1[[#This Row],[2]]="","",IF(G185="",IF(Таблица1[[#This Row],[2]]="","",NOW()),G185)) ->  | H185: =SUMIF(Таблица1[2],Таблица1[[#This Row],[2]],H186:H187) -> 0 | J185: =IF(OR(Таблица1[[#This Row],[2]]=Таблица1[[#This Row],[2]]),SUM(F185,-J186:J195),1) -> 0 | L185: =IF(OR(B181=B181),Таблица1[[#This Row],[8]]-SUM(J182:J184)) -> 0 | M185: 2023-04-05T00:16:04.350 | N185: х | O185: х
A186: =(F186<>"")*COUNTA($F$5:F186) -> 0 | G186: =IF(Таблица1[[#This Row],[2]]="","",IF(G186="",IF(Таблица1[[#This Row],[2]]="","",NOW()),G186)) ->  | H186: =SUMIF(Таблица1[2],Таблица1[[#This Row],[2]],H187:H188) -> 0 | J186: =IF(OR(Таблица1[[#This Row],[2]]=Таблица1[[#This Row],[2]]),SUM(F186,-J187:J196),1) -> 0 | L186: =IF(OR(B182=B182),Таблица1[[#This Row],[8]]-SUM(J183:J185)) -> 0 | M186: 2023-04-05T00:16:04.360 | N186: х | O186: х
A187: =(F187<>"")*COUNTA($F$5:F187) -> 0 | G187: =IF(Таблица1[[#This Row],[2]]="","",IF(G187="",IF(Таблица1[[#This Row],[2]]="","",NOW()),G187)) ->  | H187: =SUMIF(Таблица1[2],Таблица1[[#This Row],[2]],H188:H189) -> 0 | J187: =IF(OR(Таблица1[[#This Row],[2]]=Таблица1[[#This Row],[2]]),SUM(F187,-J188:J197),1) -> 0 | L187: =IF(OR(B183=B183),Таблица1[[#This Row],[8]]-SUM(J184:J186)) -> 0 | M187: 2023-04-05T00:16:04.360 | N187: х | O187: х
A188: =(F188<>"")*COUNTA($F$5:F188) -> 0 | G188: =IF(Таблица1[[#This Row],[2]]="","",IF(G188="",IF(Таблица1[[#This Row],[2]]="","",NOW()),G188)) ->  | H188: =SUMIF(Таблица1[2],Таблица1[[#This Row],[2]],H189:H190) -> 0 | J188: =IF(OR(Таблица1[[#This Row],[2]]=Таблица1[[#This Row],[2]]),SUM(F188,-J189:J198),1) -> 0 | L188: =IF(OR(B184=B184),Таблица1[[#This Row],[8]]-SUM(J185:J187)) -> 0 | M188: 2023-04-05T00:16:04.360 | N188: х | O188: х
A189: =(F189<>"")*COUNTA($F$5:F189) -> 0 | G189: =IF(Таблица1[[#This Row],[2]]="","",IF(G189="",IF(Таблица1[[#This Row],[2]]="","",NOW()),G189)) ->  | H189: =SUMIF(Таблица1[2],Таблица1[[#This Row],[2]],H190:H191) -> 0 | J189: =IF(OR(Таблица1[[#This Row],[2]]=Таблица1[[#This Row],[2]]),SUM(F189,-J190:J199),1) -> 0 | L189: =IF(OR(B185=B185),Таблица1[[#This Row],[8]]-SUM(J186:J188)) -> 0 | M189: 2023-04-05T00:16:04.350 | N189: х | O189: х
A190: =(F190<>"")*COUNTA($F$5:F190) -> 0 | G190: =IF(Таблица1[[#This Row],[2]]="","",IF(G190="",IF(Таблица1[[#This Row],[2]]="","",NOW()),G190)) ->  | H190: =SUMIF(Таблица1[2],Таблица1[[#This Row],[2]],H191:H192) -> 0 | J190: =IF(OR(Таблица1[[#This Row],[2]]=Таблица1[[#This Row],[2]]),SUM(F190,-J191:J200),1) -> 0 | L190: =IF(OR(B186=B186),Таблица1[[#This Row],[8]]-SUM(J187:J189)) -> 0 | M190: 2023-04-05T00:16:04.360 | N190: х | O190: х
A191: =(F191<>"")*COUNTA($F$5:F191) -> 0 | G191: =IF(Таблица1[[#This Row],[2]]="","",IF(G191="",IF(Таблица1[[#This Row],[2]]="","",NOW()),G191)) ->  | H191: =SUMIF(Таблица1[2],Таблица1[[#This Row],[2]],H192:H193) -> 0 | J191: =IF(OR(Таблица1[[#This Row],[2]]=Таблица1[[#This Row],[2]]),SUM(F191,-J192:J201),1) -> 0 | L191: =IF(OR(B187=B187),Таблица1[[#This Row],[8]]-SUM(J188:J190)) -> 0 | M191: 2023-04-05T00:16:04.360 | N191: х | O191: х
A192: =(F192<>"")*COUNTA($F$5:F192) -> 0 | G192: =IF(Таблица1[[#This Row],[2]]="","",IF(G192="",IF(Таблица1[[#This Row],[2]]="","",NOW()),G192)) ->  | H192: =SUMIF(Таблица1[2],Таблица1[[#This Row],[2]],H193:H194) -> 0 | J192: =IF(OR(Таблица1[[#This Row],[2]]=Таблица1[[#This Row],[2]]),SUM(F192,-J193:J202),1) -> 0 | L192: =IF(OR(B188=B188),Таблица1[[#This Row],[8]]-SUM(J189:J191)) -> 0 | M192: 2023-04-05T00:16:04.360 | N192: х | O192: х
A193: =(F193<>"")*COUNTA($F$5:F193) -> 0 | G193: =IF(Таблица1[[#This Row],[2]]="","",IF(G193="",IF(Таблица1[[#This Row],[2]]="","",NOW()),G193)) ->  | H193: =SUMIF(Таблица1[2],Таблица1[[#This Row],[2]],H194:H195) -> 0 | J193: =IF(OR(Таблица1[[#This Row],[2]]=Таблица1[[#This Row],[2]]),SUM(F193,-J194:J203),1) -> 0 | L193: =IF(OR(B189=B189),Таблица1[[#This Row],[8]]-SUM(J190:J192)) -> 0 | M193: 2023-04-05T00:16:04.350 | N193: х | O193: х
A194: =(F194<>"")*COUNTA($F$5:F194) -> 0 | G194: =IF(Таблица1[[#This Row],[2]]="","",IF(G194="",IF(Таблица1[[#This Row],[2]]="","",NOW()),G194)) ->  | H194: =SUMIF(Таблица1[2],Таблица1[[#This Row],[2]],H195:H196) -> 0 | J194: =IF(OR(Таблица1[[#This Row],[2]]=Таблица1[[#This Row],[2]]),SUM(F194,-J195:J204),1) -> 0 | L194: =IF(OR(B190=B190),Таблица1[[#This Row],[8]]-SUM(J191:J193)) -> 0 | M194: 2023-04-05T00:16:04.360 | N194: х | O194: х
A195: =(F195<>"")*COUNTA($F$5:F195) -> 0 | G195: =IF(Таблица1[[#This Row],[2]]="","",IF(G195="",IF(Таблица1[[#This Row],[2]]="","",NOW()),G195)) ->  | H195: =SUMIF(Таблица1[2],Таблица1[[#This Row],[2]],H196:H197) -> 0 | J195: =IF(OR(Таблица1[[#This Row],[2]]=Таблица1[[#This Row],[2]]),SUM(F195,-J196:J205),1) -> 0 | L195: =IF(OR(B191=B191),Таблица1[[#This Row],[8]]-SUM(J192:J194)) -> 0 | M195: 2023-04-05T00:16:04.360 | N195: х | O195: х
A196: =(F196<>"")*COUNTA($F$5:F196) -> 0 | G196: =IF(Таблица1[[#This Row],[2]]="","",IF(G196="",IF(Таблица1[[#This Row],[2]]="","",NOW()),G196)) ->  | H196: =SUMIF(Таблица1[2],Таблица1[[#This Row],[2]],H197:H198) -> 0 | J196: =IF(OR(Таблица1[[#This Row],[2]]=Таблица1[[#This Row],[2]]),SUM(F196,-J197:J206),1) -> 0 | L196: =IF(OR(B192=B192),Таблица1[[#This Row],[8]]-SUM(J193:J195)) -> 0 | M196: 2023-04-05T00:16:04.360 | N196: х | O196: х
A197: =(F197<>"")*COUNTA($F$5:F197) -> 0 | G197: =IF(Таблица1[[#This Row],[2]]="","",IF(G197="",IF(Таблица1[[#This Row],[2]]="","",NOW()),G197)) ->  | H197: =SUMIF(Таблица1[2],Таблица1[[#This Row],[2]],H198:H199) -> 0 | J197: =IF(OR(Таблица1[[#This Row],[2]]=Таблица1[[#This Row],[2]]),SUM(F197,-J198:J207),1) -> 0 | L197: =IF(OR(B193=B193),Таблица1[[#This Row],[8]]-SUM(J194:J196)) -> 0 | M197: 2023-04-05T00:16:04.350 | N197: х | O197: х
A198: =(F198<>"")*COUNTA($F$5:F198) -> 0 | G198: =IF(Таблица1[[#This Row],[2]]="","",IF(G198="",IF(Таблица1[[#This Row],[2]]="","",NOW()),G198)) ->  | H198: =SUMIF(Таблица1[2],Таблица1[[#This Row],[2]],H199:H200) -> 0 | J198: =IF(OR(Таблица1[[#This Row],[2]]=Таблица1[[#This Row],[2]]),SUM(F198,-J199:J208),1) -> 0 | L198: =IF(OR(B194=B194),Таблица1[[#This Row],[8]]-SUM(J195:J197)) -> 0 | M198: 2023-04-05T00:16:04.360 | N198: х | O198: х
A199: =(F199<>"")*COUNTA($F$5:F199) -> 0 | G199: =IF(Таблица1[[#This Row],[2]]="","",IF(G199="",IF(Таблица1[[#This Row],[2]]="","",NOW()),G199)) ->  | H199: =SUMIF(Таблица1[2],Таблица1[[#This Row],[2]],H200:H201) -> 0 | J199: =IF(OR(Таблица1[[#This Row],[2]]=Таблица1[[#This Row],[2]]),SUM(F199,-J200:J209),1) -> 0 | L199: =IF(OR(B195=B195),Таблица1[[#This Row],[8]]-SUM(J196:J198)) -> 0 | M199: 2023-04-05T00:16:04.360 | N199: х | O199: х
A200: =(F200<>"")*COUNTA($F$5:F200) -> 0 | G200: =IF(Таблица1[[#This Row],[2]]="","",IF(G200="",IF(Таблица1[[#This Row],[2]]="","",NOW()),G200)) ->  | H200: =SUMIF(Таблица1[2],Таблица1[[#This Row],[2]],H201:H202) -> 0 | J200: =IF(OR(Таблица1[[#This Row],[2]]=Таблица1[[#This Row],[2]]),SUM(F200,-J201:J210),1) -> 0 | L200: =IF(OR(B196=B196),Таблица1[[#This Row],[8]]-SUM(J197:J199)) -> 0 | M200: 2023-04-05T00:16:04.360 | N200: х | O200: х
... 3245 more rows
